Name,Sub Group,Service Area,Expense Type,Narrative,Date,Transaction No,Amount,Supplier Name,Supplier Ref,Period,Year
Allerdale Borough Council,54105,Capital Expenditure,Housing Act 1989 - Facilities,Grants  Private Individuals (Capital),02/05/2013,1729,"4,048.00",W W BUILDERS LIMITED,X00212,2,2013
Allerdale Borough Council,54105,Capital Expenditure,Housing Act 1989 - Facilities,Grants  Private Individuals (Capital),02/05/2013,1730,"1,400.00",DOLPHIN STAIRLIFTS CUMBRIA,X00107,2,2013
Allerdale Borough Council,54105,Capital Expenditure,Housing Act 1989 - Facilities,Grants  Private Individuals (Capital),02/05/2013,1731,"1,367.00",JOSEPH RIDLEY BUILDERS LTD,X00124,2,2013
Allerdale Borough Council,54105,Capital Expenditure,Housing Act 1989 - Facilities,Grants  Private Individuals (Capital),02/05/2013,1732,"2,765.00",JOSEPH RIDLEY BUILDERS LTD,X00124,2,2013
Allerdale Borough Council,15501,Supplies & Services,Human Resources Pay Group,Consultants Fees,02/05/2013,1733,60.00,HAYS,A00280,2,2013
Allerdale Borough Council,12408,Premises,Homelessness,Water & Sewage,02/05/2013,1734,5.53,UNITED UTILITIES,X00011,2,2013
Allerdale Borough Council,14104,,Homelessness,Repairs & Maintenance,08/05/2013,1735,227.94,ARVAL LTD,A00545,2,2013
Allerdale Borough Council,12501,Premises,Homelessness,NNDR and Other Occupancy Charges,02/05/2013,1736,524.17,ALLERDALE,A00342,2,2013
Allerdale Borough Council,12501,Premises,Homelessness,NNDR and Other Occupancy Charges,02/05/2013,1737,524.17,ALLERDALE,A00342,2,2013
Allerdale Borough Council,12501,Premises,Homelessness,NNDR and Other Occupancy Charges,02/05/2013,1738,524.17,ALLERDALE,A00342,2,2013
Allerdale Borough Council,12501,Premises,Homelessness,NNDR and Other Occupancy Charges,02/05/2013,1739,524.17,ALLERDALE,A00342,2,2013
Allerdale Borough Council,12501,Premises,Homelessness,NNDR and Other Occupancy Charges,02/05/2013,1740,524.17,ALLERDALE,A00342,2,2013
Allerdale Borough Council,12501,Premises,Homelessness,NNDR and Other Occupancy Charges,02/05/2013,1741,524.17,ALLERDALE,A00342,2,2013
Allerdale Borough Council,12501,Premises,Homelessness,NNDR and Other Occupancy Charges,02/05/2013,1742,524.17,ALLERDALE,A00342,2,2013
Allerdale Borough Council,12501,Premises,Homelessness,NNDR and Other Occupancy Charges,02/05/2013,1743,520.01,ALLERDALE,A00342,2,2013
Allerdale Borough Council,12501,Premises,Homelessness,NNDR and Other Occupancy Charges,02/05/2013,1744,520.01,ALLERDALE,A00342,2,2013
Allerdale Borough Council,12501,Premises,Homelessness,NNDR and Other Occupancy Charges,02/05/2013,1745,520.01,ALLERDALE,A00342,2,2013
Allerdale Borough Council,12408,Premises,Corporate Property,Water & Sewage,02/05/2013,1746,733.39,UNITED UTILITIES,X00011,2,2013
Allerdale Borough Council,12408,Premises,Public Convenience Cleaning,Water & Sewage,02/05/2013,1747,62.06,UNITED UTILITIES,X00011,2,2013
Allerdale Borough Council,12408,Premises,Corporate Property,Water & Sewage,02/05/2013,1748,"1,774.14",UNITED UTILITIES,X00011,2,2013
Allerdale Borough Council,12408,Premises,Corporate Property,Water & Sewage,02/05/2013,1749,199.30,UNITED UTILITIES,X00011,2,2013
Allerdale Borough Council,12408,Premises,Other Land & Buildings,Water & Sewage,02/05/2013,1750,20.60,UNITED UTILITIES,X00011,2,2013
Allerdale Borough Council,15403,Supplies & Services,Environmental Services Pay Group,Publications and Periodicals,02/05/2013,1751,15.20,P & D NEWSAGENTS,A00237,2,2013
Allerdale Borough Council,15550,Supplies & Services,Recycling,General-Service Related Fees,02/05/2013,1752,"1,372.68",SCOTTS HAULAGE,A00266,2,2013
Allerdale Borough Council,15103,Supplies & Services,Recycling,Purchase of Materials,02/05/2013,1753,158.00,FIRPRESS PRINTERS,A00063,2,2013
Allerdale Borough Council,15103,Supplies & Services,Recycling,Purchase of Materials,02/05/2013,1754,148.00,FIRPRESS PRINTERS,A00063,2,2013
Allerdale Borough Council,15103,Supplies & Services,Recycling,Purchase of Materials,02/05/2013,1755,"3,156.80",CUMBRIAN NEWSPAPERS LIMITED,A00869,2,2013
Allerdale Borough Council,10401,Employee Costs,Environmental Services Pay Group,Agency Staff Costs,02/05/2013,1756,440.70,Redacted information - included personal information ,A00176,2,2013
Allerdale Borough Council,15510,Supplies & Services,Confidential Waste,Disposal of Waste,02/05/2013,1757,96.00,P&W CONFIDENTIAL BUSINESS SERVICE,A01498,2,2013
Allerdale Borough Council,15101,Supplies & Services,Recycling,Equipment Costs,02/05/2013,1758,"5,348.00",CRAEMER UK LTD,A01016,2,2013
Allerdale Borough Council,15501,Supplies & Services,Street Cleansing,Consultants Fees,02/05/2013,1759,47.89,BRITISH TELECOMMUNICATIONS,X00004,2,2013
Allerdale Borough Council,20102,Third Party Payments,Recycling,Horticulture (Obsolete),02/05/2013,1760,"1,349.58",FCC RECYCLING (UK) LTD (ALCO),A00185,2,2013
Allerdale Borough Council,20102,Third Party Payments,Recycling,Horticulture (Obsolete),02/05/2013,1761,841.06,FCC RECYCLING (UK) LTD (ALCO),A00185,2,2013
Allerdale Borough Council,15701,Supplies & Services,Environmental Services Pay Group,Installation Costs,02/05/2013,1762,31.85,VODAFONE CORPORATE LTD,A00198,2,2013
Allerdale Borough Council,15101,Supplies & Services,Recycling,Equipment Costs,15/05/2013,1763,"6,545.00",CRAEMER UK LTD,A01016,2,2013
Allerdale Borough Council,12405,Premises,Enterprise Coaches,Rentals and Lease Charges,08/05/2013,1780,653.67,PHOENIX ENTERPRISE CENTRE,A00377,2,2013
Allerdale Borough Council,16150,Supplies & Services,Solway Wetlands Project,General Promotions,22/05/2013,1781,39.00,KIRKBRIDE CHURCH INSTITUTE,A01808,2,2013
Allerdale Borough Council,15802,Supplies & Services,Shared IT Services,Hardware Maintenance,22/05/2013,1782,240.20,PROBRAND,A00040,2,2013
Allerdale Borough Council,12405,Premises,Enterprise Coaches,Rentals and Lease Charges,22/05/2013,1783,"1,500.00",SOLWAY PLAIN FUTURES LTD,A01194,2,2013
Allerdale Borough Council,15404,Supplies & Services,Legal Services,Reference Materials,22/05/2013,1784,239.00,SWEET & MAXWELL GROUP LTD,A00028,2,2013
Allerdale Borough Council,15506,Supplies & Services,Legal Services,Professional Services,02/05/2013,1785,"1,750.00",TROWERS & HAMLINS LLP,A01809,2,2013
Allerdale Borough Council,15506,Supplies & Services,Legal Services,Professional Services,22/05/2013,1786,"1,700.00",KINGS CHAMBERS,A00348,2,2013
Allerdale Borough Council,15813,Supplies & Services,Shared IT Services,Software Miscellaneous,29/05/2013,1787,341.00,GENIUS INTERNET SECURITY,A01595,2,2013
Allerdale Borough Council,12101,Premises,Public Convenience Cleaning,External Maintenance & Decoration,02/05/2013,1788,200.00,SOLWAY INDUSTRIAL DOORS LTD,C00015,2,2013
Allerdale Borough Council,15202,Supplies & Services,Carnegie Theatre,Bar Provision,15/05/2013,1789,90.00,BAR THIRTY TWO LIMITED,A01300,2,2013
Allerdale Borough Council,15813,Supplies & Services,Risk Management,Software Miscellaneous,02/05/2013,1790,999.00,VOCAL LIMITED,A01779,2,2013
Allerdale Borough Council,15508,Supplies & Services,Housing Services Pay Group,Subscriptions,22/05/2013,1791,670.00,INFORMA UK LIMITED,A00335,2,2013
Allerdale Borough Council,12309,Premises,Carnegie Theatre,Fire and Safety,29/05/2013,1792,129.96,COOPER LIGHTING & SAFETY LTD,A00637,2,2013
Allerdale Borough Council,12309,Premises,Carnegie Theatre,Fire and Safety,29/05/2013,1793,619.20,COOPER LIGHTING & SAFETY LTD,A00637,2,2013
Allerdale Borough Council,34150,Income,Homelessness,General Recovery of Other Costs-Income,02/05/2013,1794,360.00,Redacted information - included personal information ,M00027,2,2013
Allerdale Borough Council,15404,Supplies & Services,Legal Services,Reference Materials,08/05/2013,1795,436.50,LEXISNEXIS BUTTERWORTHS,A00356,2,2013
Allerdale Borough Council,15506,Supplies & Services,Legal Services,Professional Services,08/05/2013,1796,30.00,CUMBRIA ,A00066,2,2013
Allerdale Borough Council,10401,Employee Costs,Communications and Marketing,Agency Staff Costs,08/05/2013,1798,666.45,HAYS,A00280,2,2013
Allerdale Borough Council,15401,Supplies & Services,Corporate Improvement Team,General Stationery,08/05/2013,1799,18.74,K&R BADGES LIMITED,A01328,2,2013
Allerdale Borough Council,15506,Supplies & Services,Legal Services,Professional Services,22/05/2013,1800,"1,343.00",EVERSHEDS LLP,A01516,2,2013
Allerdale Borough Council,70104,VAT,Input VAT,VAT - 20%,08/05/2013,1801,839.71,WORKINGTON PLAYGOERS,M00028,2,2013
Allerdale Borough Council,15302,Supplies & Services,Parking Services Pay Group,Protective Clothing,15/05/2013,1802,182.50,ARCO LIMITED - CARLISLE,A01448,2,2013
Allerdale Borough Council,20150,Third Party Payments,Corporate Improvement Team,General Partnership Service Fees,08/05/2013,1803,125.00,OUTREACH CUMBRIA LIMITED,A01630,2,2013
Allerdale Borough Council,14202,,Solway Coast AONB,Hire Car and petrol,22/05/2013,1804,43.15,ENTERPRISE RENT A CAR,A01367,2,2013
Allerdale Borough Council,12408,Premises,Public Convenience Cleaning,Water & Sewage,08/05/2013,1805,74.31,UNITED UTILITIES,X00011,2,2013
Allerdale Borough Council,10602,Employee Costs,Training,Post Entry Training,15/05/2013,1806,200.00,PHF TRAINING LTD,A01757,2,2013
Allerdale Borough Council,10401,Employee Costs,IT - New Initiatives,Agency Staff Costs,08/05/2013,1807,"1,625.00",HAYS,A00280,2,2013
Allerdale Borough Council,15704,Supplies & Services,Shared IT Services,Mobile Phones,08/05/2013,1808,"1,048.96",VODAFONE,A00551,2,2013
Allerdale Borough Council,15505,Supplies & Services,Carnegie Theatre,Licences,08/05/2013,1809,351.81,PERFORMING RIGHTS SOCIETY,A00400,2,2013
Allerdale Borough Council,16150,Supplies & Services,Solway Coast AONB,General Promotions,15/05/2013,1810,160.00,BRITISH RED CROSS,A00534,2,2013
Allerdale Borough Council,14104,,Pest Control,Repairs & Maintenance,08/05/2013,1811,280.00,MARYPORT CAR CENTRE,A00510,2,2013
Allerdale Borough Council,10601,Employee Costs,Training,External Courses & Seminar Fees,15/05/2013,1812,62.80,ENTERPRISE RENT A CAR,A01367,2,2013
Allerdale Borough Council,12408,Premises,Other Land & Buildings,Water & Sewage,08/05/2013,1813,13.47,UNITED UTILITIES,X00011,2,2013
Allerdale Borough Council,12408,Premises,Tenanted Properties,Water & Sewage,08/05/2013,1814,86.53,UNITED UTILITIES,X00011,2,2013
Allerdale Borough Council,10401,Employee Costs,Environmental Health Pay Group,Agency Staff Costs,08/05/2013,1815,144.56,CAPITA TRANSLATION & INTERPRETING,A01749,2,2013
Allerdale Borough Council,70104,VAT,Input VAT,VAT - 20%,08/05/2013,1816,200.00,THEATRE BY THE LAKE,A00581,2,2013
Allerdale Borough Council,20104,Third Party Payments,Street Cleansing,Street Cleansing,08/05/2013,1817,"1,593.00",BROXAP LIMITED,C00048,2,2013
Allerdale Borough Council,20150,Third Party Payments,Carnegie Theatre,General Partnership Service Fees,08/05/2013,1818,100.00,SPC SECURITY,A01457,2,2013
Allerdale Borough Council,15550,Supplies & Services,Carnegie Theatre,General-Service Related Fees,29/05/2013,1819,22.96,TICKETS.COM LTD,A00371,2,2013
Allerdale Borough Council,15514,Supplies & Services,Carnegie Theatre,Public Entertainment,08/05/2013,1820,600.00,Redacted information - included personal information ,A01796,2,2013
Allerdale Borough Council,12403,Premises,Homelessness,Gas,29/05/2013,1821,45.00,MEPOS LIMITED,A01286,2,2013
Allerdale Borough Council,14104,,Public Convenience Cleaning,Repairs & Maintenance,08/05/2013,1822,37.50,GOODFELLOW & SONS,A00031,2,2013
Allerdale Borough Council,12103,Premises,Environmental Initiatives,Grounds Maintenance,08/05/2013,1823,"3,461.00",DERWENT & SOLWAY ,A00219,2,2013
Allerdale Borough Council,15506,Supplies & Services,Legal Services,Professional Services,08/05/2013,1824,80.00,SOUTH LAKELAND DISTRICT COUNCIL,A00569,2,2013
Allerdale Borough Council,15202,Supplies & Services,Carnegie Theatre,Bar Provision,22/05/2013,1825,180.00,BAR THIRTY TWO LIMITED,A01300,2,2013
Allerdale Borough Council,15202,Supplies & Services,Carnegie Theatre,Bar Provision,29/05/2013,1826,150.99,BOOKER CASH & CARRY ,A01419,2,2013
Allerdale Borough Council,14104,,Pest Control,Repairs & Maintenance,29/05/2013,1827,80.00,FCC ENVIRONMENT SERVICES (FOCSA),A00085,2,2013
Allerdale Borough Council,15550,Supplies & Services,Carnegie Theatre,General-Service Related Fees,08/05/2013,1828,29.52,TICKETS.COM LTD,A00371,2,2013
Allerdale Borough Council,16150,Supplies & Services,Carnegie Theatre,General Promotions,08/05/2013,1829,113.12,CUMBRIAN NEWSPAPERS LIMITED,A00869,2,2013
Allerdale Borough Council,15510,Supplies & Services,Confidential Waste,Disposal of Waste,15/05/2013,1830,90.00,P&W CONFIDENTIAL BUSINESS SERVICE,A01498,2,2013
Allerdale Borough Council,14202,,Members Services,Hire Car and petrol,08/05/2013,1831,90.00,KEN ROUTLEDGE TRAVEL LTD,A00192,2,2013
Allerdale Borough Council,16150,Supplies & Services,Solway Wetlands Project,General Promotions,22/05/2013,1832,23.88,YORKSHIRE PURCHASING ORGANISATION,A00747,2,2013
Allerdale Borough Council,15811,Supplies & Services,Shared IT Services,Software Maintenance,08/05/2013,1833,"18,929.96",CIVICA UK LIMITED,A00006,2,2013
Allerdale Borough Council,15501,Supplies & Services,Human Resources Pay Group,Consultants Fees,08/05/2013,1834,350.00,MILBURNS SOLICITORS,A00310,2,2013
Allerdale Borough Council,15202,Supplies & Services,Carnegie Theatre,Bar Provision,,1835,66.80,CLASSIC DRINKS LIMITED,A00413,2,2013
Allerdale Borough Council,16350,Supplies & Services,Mayors Charity,Miscellaneous Expenses,08/05/2013,1836,"1,021.71",HOSPICE AT HOME WEST CUMBRIA,M00033,2,2013
Allerdale Borough Council,16350,Supplies & Services,Mayors Charity,Miscellaneous Expenses,08/05/2013,1837,"1,021.71",SSAFA FORCES HELP NORTH WEST,M00032,2,2013
Allerdale Borough Council,16350,Supplies & Services,Members Services,Miscellaneous Expenses,08/05/2013,1838,50.00,GREAT NORTH AIR AMBULANCE SERVICE,M00031,2,2013
Allerdale Borough Council,16350,Supplies & Services,Finance and Accounting Pay Group,Miscellaneous Expenses,08/05/2013,1839,259.08,Redacted information - included personal information ,M00030,2,2013
Allerdale Borough Council,16350,Supplies & Services,Finance and Accounting Pay Group,Miscellaneous Expenses,08/05/2013,1840,200.00,Redacted information - included personal information ,M00029,2,2013
Allerdale Borough Council,15502,Supplies & Services,Legal Services,Land Registry Fees,08/05/2013,1841,19.00,HM LAND REGISTRY ,A00505,2,2013
Allerdale Borough Council,72101,Holding and Control Accounts,Derwent and Solway,Expenditure,08/05/2013,1842,"3,516.70",DERWENT & SOLWAY,A00219,2,2013
Allerdale Borough Council,16350,Supplies & Services,Homelessness,Miscellaneous Expenses,08/05/2013,1843,75.00,BR PROPERTIES,M00017,2,2013
Allerdale Borough Council,16350,Supplies & Services,Enterprise Coaches,Miscellaneous Expenses,08/05/2013,1844,84.48,ALLERDALE BOROUGH COUNCIL,X00034,2,2013
Allerdale Borough Council,70104,VAT,Non Justified VAT,VAT - 20%,08/05/2013,1845,"1,605.44",MARYPORT SUMMER FESTIVAL,M00034,2,2013
Allerdale Borough Council,33121,Income,Off-street - Owned,Excess Charges - Car Parks Income,08/05/2013,1846,25.00,Redacted information - included personal information ,M00035,2,2013
Allerdale Borough Council,33118,Income,Off-street - Owned,Car Parks - Season Tickets Income,08/05/2013,1847,83.60,Redacted information - included personal information ,M00036,2,2013
Allerdale Borough Council,12201,Premises,Corporate Property,Internal Maintenance,15/05/2013,1848,"1,664.41",M & D ELECTRICAL DISTRIBUTION,A00077,2,2013
Allerdale Borough Council,15903,Supplies & Services,Members Services,"Courses, Training & Seminars",15/05/2013,1849,"1,018.00",LAKES COLLEGE WEST CUMB,A00093,2,2013
Allerdale Borough Council,12104,Premises,Parks Development,Playground Equipment,15/05/2013,1850,932.40,THE PLAY PRACTICE (SCOTLAND) LTD,A01766,2,2013
Allerdale Borough Council,15602,Supplies & Services,Elections,Business Reply Licences,15/05/2013,1851,127.73,ROYAL MAIL LETTERS,X00021,2,2013
Allerdale Borough Council,15903,Supplies & Services,Members Services,"Courses, Training & Seminars",15/05/2013,1852,29.70,AL'S KITCHEN,A00187,2,2013
Allerdale Borough Council,70104,VAT,Input VAT,VAT - 20%,15/05/2013,1853,82.28,ROSSENDALES LTD,A00964,2,2013
Allerdale Borough Council,70104,VAT,Input VAT,VAT - 20%,15/05/2013,1854,120.00,ROSSENDALES LTD,A00964,2,2013
Allerdale Borough Council,70104,VAT,Input VAT,VAT - 20%,15/05/2013,1855,297.13,ROSSENDALES LTD,A00964,2,2013
Allerdale Borough Council,70104,VAT,Input VAT,VAT - 20%,15/05/2013,1856,275.58,JACOBS,A00495,2,2013
Allerdale Borough Council,70104,VAT,Input VAT,VAT - 20%,15/05/2013,1857,188.60,JACOBS,A00495,2,2013
Allerdale Borough Council,70104,VAT,Input VAT,VAT - 20%,15/05/2013,1858,129.71,ROSSENDALES LTD,A00964,2,2013
Allerdale Borough Council,70104,VAT,Input VAT,VAT - 20%,15/05/2013,1859,244.74,ROSSENDALES LTD,A00964,2,2013
Allerdale Borough Council,70104,VAT,Input VAT,VAT - 20%,15/05/2013,1860,230.08,ROSSENDALES LTD,A00964,2,2013
Allerdale Borough Council,70104,VAT,Input VAT,VAT - 20%,15/05/2013,1861,68.76,ROSSENDALES LTD,A00964,2,2013
Allerdale Borough Council,70104,VAT,Input VAT,VAT - 20%,15/05/2013,1862,383.93,ROSSENDALES LTD,A00964,2,2013
Allerdale Borough Council,70104,VAT,Input VAT,VAT - 20%,15/05/2013,1863,389.79,ROSSENDALES LTD,A00964,2,2013
Allerdale Borough Council,70104,VAT,Input VAT,VAT - 20%,15/05/2013,1864,145.92,ROSSENDALES LTD,A00964,2,2013
Allerdale Borough Council,12307,Premises,Carnegie Theatre,Fixtures and Fittings,15/05/2013,1865,268.00,FCC RECYCLING (UK) LTD (ALCO),A00185,2,2013
Allerdale Borough Council,12408,Premises,Public Convenience Cleaning,Water & Sewage,15/05/2013,1866,247.90,UNITED UTILITIES,X00011,2,2013
Allerdale Borough Council,70104,VAT,Input VAT,VAT - 20%,15/05/2013,1867,94.38,ROSSENDALES LTD,A00964,2,2013
Allerdale Borough Council,70104,VAT,Input VAT,VAT - 20%,15/05/2013,1868,6.28,ROSSENDALES LTD,A00964,2,2013
Allerdale Borough Council,70104,VAT,Input VAT,VAT - 20%,05/06/2013,1869,195.95,ROSSENDALES LTD,A00964,2,2013
Allerdale Borough Council,70104,VAT,Input VAT,VAT - 20%,15/05/2013,1870,261.83,ROSSENDALES LTD,A00964,2,2013
Allerdale Borough Council,70104,VAT,Input VAT,VAT - 20%,15/05/2013,1871,9.55,ROSSENDALES LTD,A00964,2,2013
Allerdale Borough Council,70104,VAT,Input VAT,VAT - 20%,15/05/2013,1872,31.72,ROSSENDALES LTD,A00964,2,2013
Allerdale Borough Council,70104,VAT,Input VAT,VAT - 20%,15/05/2013,1873,391.22,JACOBS,A00495,2,2013
Allerdale Borough Council,12301,Premises,Corporate Property,Security,15/05/2013,1874,241.50,G4S SECURE SOLUTIONS,A01597,2,2013
Allerdale Borough Council,15550,Supplies & Services,Carnegie Theatre,General-Service Related Fees,22/05/2013,1875,9.84,TICKETS.COM LTD,A00371,2,2013
Allerdale Borough Council,15507,Supplies & Services,Land Charges Service,Searches,15/05/2013,1876,927.50,LAKE DISTRICT NATIONAL PARK AUTHORITY,A00415,2,2013
Allerdale Borough Council,15550,Supplies & Services,Licensing Service,General-Service Related Fees,29/05/2013,1877,176.00,DISCLOSURE & BARRING SERVICE ,X00041,2,2013
Allerdale Borough Council,15601,Supplies & Services,Benefits,Postage,15/05/2013,1878,"1,322.97",ROYAL MAIL LETTERS,X00021,2,2013
Allerdale Borough Council,12402,Premises,Tenanted Properties,Electricity,15/05/2013,1879,3.65,EON,X00016,2,2013
Allerdale Borough Council,12408,Premises,Tenanted Properties,Water & Sewage,15/05/2013,1880,47.26,UNITED UTILITIES,X00011,2,2013
Allerdale Borough Council,12408,Premises,Public Convenience Cleaning,Water & Sewage,15/05/2013,1881,131.18,UNITED UTILITIES,X00011,2,2013
Allerdale Borough Council,12408,Premises,Corporate Property,Water & Sewage,15/05/2013,1882,15.21,UNITED UTILITIES,X00011,2,2013
Allerdale Borough Council,12408,Premises,Corporate Property,Water & Sewage,15/05/2013,1883,14.78,UNITED UTILITIES,X00011,2,2013
Allerdale Borough Council,12408,Premises,Public Convenience Cleaning,Water & Sewage,15/05/2013,1884,13.52,UNITED UTILITIES,X00011,2,2013
Allerdale Borough Council,12408,Premises,Other Land & Buildings,Water & Sewage,15/05/2013,1885,13.83,UNITED UTILITIES,X00011,2,2013
Allerdale Borough Council,15101,Supplies & Services,Off-street - Owned,Equipment Costs,29/05/2013,1886,260.69,COBALT TELEPHONE TECHNOLOGY,A01008,2,2013
Allerdale Borough Council,15903,Supplies & Services,Members Services,"Courses, Training & Seminars",22/05/2013,1887,164.00,CARLISLE LEISURE LTD,A00136,2,2013
Allerdale Borough Council,12303,Premises,Corporate Property,Window Cleaning,15/05/2013,1888,234.85,J A LEE WINDOWS,A00051,2,2013
Allerdale Borough Council,12101,Premises,Public Convenience Cleaning,External Maintenance & Decoration,15/05/2013,1889,202.44,UNBLOCK CUMBRIA LTD,C00005,2,2013
Allerdale Borough Council,14104,,Recycling,Repairs & Maintenance,15/05/2013,1890,9.40,HI-Q TYRESERVICES,A00313,2,2013
Allerdale Borough Council,12405,Premises,Customer Services Pay Group,Rentals and Lease Charges,15/05/2013,1892,427.50,SOLWAY PLAIN FUTURES LTD,A01194,2,2013
Allerdale Borough Council,15508,Supplies & Services,Banking and Interest,Subscriptions,15/05/2013,1893,"3,935.00",CIPFA,A00572,2,2013
Allerdale Borough Council,15404,Supplies & Services,Finance and Accounting Pay Group,Reference Materials,15/05/2013,1894,680.00,CIPFA,A00572,2,2013
Allerdale Borough Council,15508,Supplies & Services,Finance and Accounting Pay Group,Subscriptions,15/05/2013,1895,"2,300.00",CIPFA,A00572,2,2013
Allerdale Borough Council,15813,Supplies & Services,Banking and Interest,Software Miscellaneous,15/05/2013,1896,"1,836.00",DUE NORTH LTD,A01654,2,2013
Allerdale Borough Council,12305,Premises,Corporate Property,Inspections and Services,15/05/2013,1897,"1,126.00",REFRIGERATION (MITTON) LTD,C00012,2,2013
Allerdale Borough Council,51101,Capital Expenditure,KMAG Enhancement Project,External Contractor Payments (Capital),15/05/2013,1898,665.00,BOX CLEVER STORAGE,A00880,2,2013
Allerdale Borough Council,16003,Supplies & Services,Customer Services Pay Group,Security of Cash Movements,15/05/2013,1899,"1,025.13",SECURITY PLUS LIMITED,A00503,2,2013
Allerdale Borough Council,15508,Supplies & Services,Corporate Management,Subscriptions,15/05/2013,1900,140.00,THE MJ,A01494,2,2013
Allerdale Borough Council,15500,Supplies & Services,Museums,Budget-Services,15/05/2013,1901,228.00,MODES USER ASSOCIATION,A00796,2,2013
Allerdale Borough Council,15501,Supplies & Services,Revenue,Consultants Fees,15/05/2013,1902,"1,526.32",NEOPOST LIMITED,A00455,2,2013
Allerdale Borough Council,12103,Premises,Small Blue Butterfly Project,Grounds Maintenance,15/05/2013,1903,"3,447.50",GROUNDWORK NORTH EAST,A01805,2,2013
Allerdale Borough Council,10401,Employee Costs,Communications and Marketing,Agency Staff Costs,15/05/2013,1904,666.45,HAYS,A00280,2,2013
Allerdale Borough Council,16003,Supplies & Services,Customer Services Pay Group,Security of Cash Movements,29/05/2013,1905,"1,086.12",SECURITY PLUS LIMITED,A00503,2,2013
Allerdale Borough Council,15500,Supplies & Services,Food and Occupational Health,Budget-Services,15/05/2013,1906,235.00,MP MARINE LTD,A00113,2,2013
Allerdale Borough Council,16100,Supplies & Services,Carnegie Theatre,Budget-Advertising and Promotions,22/05/2013,1907,509.04,CUMBRIAN NEWSPAPERS LIMITED,A00869,2,2013
Allerdale Borough Council,12309,Premises,Corporate Property,Fire and Safety,15/05/2013,1908,"5,747.00",PRO-TEC SYSTEMS,C00026,2,2013
Allerdale Borough Council,15501,Supplies & Services,Environmental Protection,Consultants Fees,22/05/2013,1909,557.90,UNITED UTILITIES PLC,A01657,2,2013
Allerdale Borough Council,15808,Supplies & Services,Document Management Pay Group,Computer Consumables,22/05/2013,1910,53.98,INSIGHT DIRECT (UK) LTD,A00054,2,2013
Allerdale Borough Council,10401,Employee Costs,Communications and Marketing,Agency Staff Costs,15/05/2013,1911,666.45,HAYS,A00280,2,2013
Allerdale Borough Council,12201,Premises,Corporate Property,Internal Maintenance,15/05/2013,1912,"4,281.90",STOBBARTS LTD,C00002,2,2013
Allerdale Borough Council,12101,Premises,Corporate Property,External Maintenance & Decoration,22/05/2013,1913,345.50,JOHN ELLIOTT LIMITED,C00023,2,2013
Allerdale Borough Council,10401,Employee Costs,Communications and Marketing,Agency Staff Costs,22/05/2013,1914,666.45,HAYS,A00280,2,2013
Allerdale Borough Council,10401,Employee Costs,Public Convenience Cleaning,Agency Staff Costs,15/05/2013,1915,185.64,COCKERMOUTH TOWN COUNCIL,A00586,2,2013
Allerdale Borough Council,15604,Supplies & Services,Document Management Pay Group,Franking Machine refills,22/05/2013,1916,408.00,FP EXECUTIVE AGENCY LTD,A00733,2,2013
Allerdale Borough Council,20104,Third Party Payments,Street Cleansing,Street Cleansing,15/05/2013,1917,796.00,BROXAP LIMITED,C00048,2,2013
Allerdale Borough Council,15508,Supplies & Services,Environmental Health Pay Group,Subscriptions,15/05/2013,1918,861.31,WOLTERS KLUWER (UK) LIMITED,A00478,2,2013
Allerdale Borough Council,14202,,New Centre Development,Hire Car and petrol,15/05/2013,1919,141.90,ENTERPRISE RENT A CAR,A01367,2,2013
Allerdale Borough Council,15550,Supplies & Services,Recycling,General-Service Related Fees,15/05/2013,1920,912.33,SCOTTS HAULAGE,A00266,2,2013
Allerdale Borough Council,51101,Capital Expenditure,KMAG Enhancement Project,External Contractor Payments (Capital),15/05/2013,1921,"5,304.00",MOSEDALE GILLATT,A01020,2,2013
Allerdale Borough Council,15401,Supplies & Services,Finance and Accounting Pay Group,General Stationery,29/05/2013,1922,390.00,PARAGON GROUP UK LTD,A00282,2,2013
Allerdale Borough Council,10401,Employee Costs,Environmental Services Pay Group,Agency Staff Costs,15/05/2013,1923,144.00,Redacted information - included personal information ,A00176,2,2013
Allerdale Borough Council,10401,Employee Costs,Environmental Services Pay Group,Agency Staff Costs,15/05/2013,1924,290.85,Redacted information - included personal information ,A00176,2,2013
Allerdale Borough Council,12305,Premises,Corporate Property,Inspections and Services,22/05/2013,1925,298.00,TYCO FIRE&INTEGRATED SOLUTIONS,A00773,2,2013
Allerdale Borough Council,15810,Supplies & Services,Carnegie Theatre,Software Licences,22/05/2013,1926,170.00,AFD SOFTWARE LTD,A01481,2,2013
Allerdale Borough Council,15506,Supplies & Services,Environmental Protection,Professional Services,29/05/2013,1927,"2,349.00",ENVIRONMENTAL SCIENTIFICS GROUP,A00896,2,2013
Allerdale Borough Council,15500,Supplies & Services,Internal Audit Pay Group,Budget-Services,29/05/2013,1928,155.00,CIPFA,A00572,2,2013
Allerdale Borough Council,15508,Supplies & Services,Corporate Management,Subscriptions,15/05/2013,1929,"2,095.00",NORTH KESTEVEN DISTRICT COUNCIL,A00918,2,2013
Allerdale Borough Council,15810,Supplies & Services,Shared IT Services,Software Licences,29/05/2013,1930,"3,665.00",CONTRACT DATA RESEARCH LTD,A00393,2,2013
Allerdale Borough Council,51101,Capital Expenditure,KMAG Enhancement Project,External Contractor Payments (Capital),15/05/2013,1931,240.00,KESWICK MUSEUM & ART GALLERY,A00337,2,2013
Allerdale Borough Council,20111,Third Party Payments,Housing Strategic Function,Voluntary Organisations,15/05/2013,1932,"1,667.00",EDEN DISTRICT COUNCIL,A00790,2,2013
Allerdale Borough Council,12305,Premises,Public Convenience Cleaning,Inspections and Services,29/05/2013,1933,127.53,PHS GROUP LTD,C00028,2,2013
Allerdale Borough Council,15405,Supplies & Services,Solway Coast AONB,Use of External Printers,22/05/2013,1934,95.00,MICHAELA CORRIE GRAPHIC DESIGN,A00513,2,2013
Allerdale Borough Council,16150,Supplies & Services,Solway Wetlands Project,General Promotions,22/05/2013,1935,535.00,MICHAELA CORRIE GRAPHIC DESIGN,A00513,2,2013
Allerdale Borough Council,15811,Supplies & Services,Shared Revs & Bens IT Costs,Software Maintenance,29/05/2013,1936,"86,025.00",COMPUTERCENTER (UK) LTD,A01198,2,2013
Allerdale Borough Council,51101,Capital Expenditure,KMAG Enhancement Project,External Contractor Payments (Capital),22/05/2013,1937,450.00,REELTIME ADVENTURE,A01798,2,2013
Allerdale Borough Council,15604,Supplies & Services,Document Management Pay Group,Franking Machine refills,15/05/2013,1938,"10,000.00",FP TELESET,A00428,2,2013
Allerdale Borough Council,15102,Supplies & Services,Off-street - Managed,Equipment Repair & Maintenance,29/05/2013,1939,236.25,METRIC GROUP LTD,A00568,2,2013
Allerdale Borough Council,15501,Supplies & Services,Senior Mgt/PA Pay Group,Consultants Fees,05/06/2013,1940,"5,045.00",BERWICK PARTNERS,A01737,2,2013
Allerdale Borough Council,15501,Supplies & Services,Senior Mgt/PA Pay Group,Consultants Fees,29/05/2013,1941,"8,000.00",BERWICK PARTNERS,A01737,2,2013
Allerdale Borough Council,12301,Premises,Crime Prevention,Security,29/05/2013,1942,"2,311.90",ADT FIRE & SECURITY PLC,A00367,2,2013
Allerdale Borough Council,16150,Supplies & Services,Solway Wetlands Project,General Promotions,29/05/2013,1943,560.00,THE ROYAL SOCIETY FOR THE PROTECTION OF BIRDS,A01752,2,2013
Allerdale Borough Council,15101,Supplies & Services,Public Convenience Cleaning,Equipment Costs,29/05/2013,1944,202.00,THE RADAR KEY COMPANY,A01610,2,2013
Allerdale Borough Council,15202,Supplies & Services,Carnegie Theatre,Bar Provision,08/05/2013,1945,32.41,BOOKER CASH & CARRY,A01419,2,2013
Allerdale Borough Council,15202,Supplies & Services,Carnegie Theatre,Bar Provision,03/05/2013,1946,150.99,BOOKER CASH & CARRY,A01419,2,2013
Allerdale Borough Council,15202,Supplies & Services,Carnegie Theatre,Bar Provision,15/05/2013,1947,11.84,SOLWAY HEATERS LTD,A00305,2,2013
Allerdale Borough Council,14201,,Carnegie Theatre,Public Transport,22/05/2013,1948,9.60,JOSIES TAXIS,A00819,2,2013
Allerdale Borough Council,15401,Supplies & Services,Document Management Pay Group,General Stationery,29/05/2013,1949,46.49,LYRECO,A00043,2,2013
Allerdale Borough Council,15401,Supplies & Services,Document Management Pay Group,General Stationery,29/05/2013,1950,74.28,LYRECO,A00043,2,2013
Allerdale Borough Council,20101,Third Party Payments,Public Convenience Cleaning,Cleansing Contract,22/05/2013,1951,200.00,J STRONG & SON,A00209,2,2013
Allerdale Borough Council,12203,Premises,Public Convenience Cleaning,Plumbing and Heating Maintenance,15/05/2013,1952,578.00,Redacted information - included personal information ,C00008,2,2013
Allerdale Borough Council,15101,Supplies & Services,Street Cleansing,Equipment Costs,29/05/2013,1953,286.20,THE HELPING HAND COMPANY,A00897,2,2013
Allerdale Borough Council,12203,Premises,Corporate Property,Plumbing and Heating Maintenance,15/05/2013,1954,95.00,O'CONNELL & BEAN (MECH&ELEC) LTD,C00078,2,2013
Allerdale Borough Council,12305,Premises,Corporate Property,Inspections and Services,15/05/2013,1955,8.40,AQUAID (NORTH),A00123,2,2013
Allerdale Borough Council,12202,Premises,Public Convenience Cleaning,Electrical Repairs and Service,22/05/2013,1956,"7,279.00",J & J ELECTRICAL (CUMBRIA) LTD,C00038,2,2013
Allerdale Borough Council,12201,Premises,Corporate Property,Internal Maintenance,12/06/2013,1957,850.00,BARRIE HAIGH PAINTING CONTRACTOR,A01607,2,2013
Allerdale Borough Council,12201,Premises,Tenanted Properties,Internal Maintenance,12/06/2013,1958,450.00,BARRIE HAIGH PAINTING CONTRACTOR,A01607,2,2013
Allerdale Borough Council,15300,Supplies & Services,Food and Occupational Health,Budget-Prov of Clothing and Equipment,15/05/2013,1959,176.04,SUNLIGHT SERVICE GROUP,A00027,2,2013
Allerdale Borough Council,12405,Premises,Homelessness,Rentals and Lease Charges,15/05/2013,1960,"9,530.28",DERWENT & SOLWAY (BACS &DIRECT DEBIT),A00219,2,2013
Allerdale Borough Council,15510,Supplies & Services,Confidential Waste,Disposal of Waste,05/06/2013,1961,90.00,P&W CONFIDENTIAL BUSINESS SERVICE,A01498,2,2013
Allerdale Borough Council,15404,Supplies & Services,Legal Services,Reference Materials,22/05/2013,1962,"9,455.00",COPELAND BOROUGH COUNCIL,A00589,2,2013
Allerdale Borough Council,14104,,Parking Services Pay Group,Repairs & Maintenance,22/05/2013,1963,82.22,HI-Q TYRESERVICES,A00313,2,2013
Allerdale Borough Council,15101,Supplies & Services,Public Building Cleaning,Equipment Costs,15/05/2013,1964,329.10,WF CLEANING SERVICES LTD,C00013,2,2013
Allerdale Borough Council,15101,Supplies & Services,Public Building Cleaning,Equipment Costs,15/05/2013,1965,58.35,WF CLEANING SERVICES LTD,C00013,2,2013
Allerdale Borough Council,15401,Supplies & Services,Document Management Pay Group,General Stationery,29/05/2013,1966,87.15,LYRECO,A00043,2,2013
Allerdale Borough Council,15604,Supplies & Services,Document Management Pay Group,Franking Machine refills,15/05/2013,1967,"5,000.00",FP TELESET,A00428,2,2013
Allerdale Borough Council,15508,Supplies & Services,Environmental Health Pay Group,Subscriptions,15/05/2013,1968,480.00,CHART INST OF ENVIRO HEALTH,A00035,2,2013
Allerdale Borough Council,15501,Supplies & Services,Human Resources Pay Group,Consultants Fees,15/05/2013,1969,150.00,BURNETTS SOLICITORS,A00129,2,2013
Allerdale Borough Council,15501,Supplies & Services,Human Resources Pay Group,Consultants Fees,15/05/2013,1970,508.95,BURNETTS SOLICITORS,A00129,2,2013
Allerdale Borough Council,15501,Supplies & Services,Human Resources Pay Group,Consultants Fees,15/05/2013,1971,88.20,BURNETTS SOLICITORS,A00129,2,2013
Allerdale Borough Council,15501,Supplies & Services,Human Resources Pay Group,Consultants Fees,15/05/2013,1972,613.80,BURNETTS SOLICITORS,A00129,2,2013
Allerdale Borough Council,15508,Supplies & Services,Senior Mgt/PA Pay Group,Subscriptions,15/05/2013,1973,377.00,SOLACE,A01802,2,2013
Allerdale Borough Council,15405,Supplies & Services,Off-street - Owned,Use of External Printers,22/05/2013,1974,70.00,FIRPRESS PRINTERS,A00063,2,2013
Allerdale Borough Council,15501,Supplies & Services,Human Resources Pay Group,Consultants Fees,15/05/2013,1975,456.30,BURNETTS SOLICITORS,A00129,2,2013
Allerdale Borough Council,12203,Premises,Public Convenience Cleaning,Plumbing and Heating Maintenance,15/05/2013,1976,"1,021.00",Redacted information - included personal information ,C00008,2,2013
Allerdale Borough Council,20150,Third Party Payments,Museums,General Partnership Service Fees,15/05/2013,1977,"48,000.00",KESWICK MUSEUM & ART GALLERY,A00337,2,2013
Allerdale Borough Council,33101,Income,Domestic Waste,Charges for Services General Income,15/05/2013,1978,17.23,Redacted information - included personal information ,M00037,2,2013
Allerdale Borough Council,33101,Income,Domestic Waste,Charges for Services General Income,15/05/2013,1979,17.23,Redacted information - included personal information ,M00038,2,2013
Allerdale Borough Council,35106,Income,Homelessness,Dwellings Income,15/05/2013,1980,92.55,ALLERDALE - CASH OFFICE,A00342,2,2013
Allerdale Borough Council,16150,Supplies & Services,Solway Wetlands Project,General Promotions,15/05/2013,1981,"15,000.00",CUMBRIA WILDLIFE TRUST,M00039,2,2013
Allerdale Borough Council,70104,VAT,Input VAT,VAT - 20%,15/05/2013,1982,"3,697.83",WADAMS,A01476,2,2013
Allerdale Borough Council,54105,Capital Expenditure,Housing Act 1989 - Facilities,Grants  Private Individuals (Capital),15/05/2013,1983,"1,150.00",BLUE FLAME SERVICES LTD,X00213,2,2013
Allerdale Borough Council,54105,Capital Expenditure,Housing Act 1989 - Facilities,Grants  Private Individuals (Capital),15/05/2013,1984,"1,195.50",TYSSEN KRUPP ENCASA/LIFTABLE,X00105,2,2013
Allerdale Borough Council,54105,Capital Expenditure,Housing Act 1989 - Facilities,Grants  Private Individuals (Capital),15/05/2013,1985,"2,680.00",PARTNERSHIP IN PROPERTY MANAGEMENT LTD,X00120,2,2013
Allerdale Borough Council,54105,Capital Expenditure,Housing Act 1989 - Facilities,Grants  Private Individuals (Capital),15/05/2013,1986,"5,440.00",BRENDAN TAYLOR LTD,X00209,2,2013
Allerdale Borough Council,54105,Capital Expenditure,Housing Act 1989 - Facilities,Grants  Private Individuals (Capital),15/05/2013,1987,390.00,WHINBARROW DESIGN SERVICES,A00311,2,2013
Allerdale Borough Council,54105,Capital Expenditure,Housing Act 1989 - Facilities,Grants  Private Individuals (Capital),15/05/2013,1988,"3,775.00",DOLPHIN STAIRLIFTS CUMBRIA,X00107,2,2013
Allerdale Borough Council,54105,Capital Expenditure,Housing Act 1989 - Facilities,Grants  Private Individuals (Capital),15/05/2013,1989,"3,285.00",PRISM MEDICAL UK,X00195,2,2013
Allerdale Borough Council,16350,Supplies & Services,Homelessness,Miscellaneous Expenses,15/05/2013,1990,550.00,BULMAN PROPERTY,M00040,2,2013
Allerdale Borough Council,34150,Income,Planning and Development,General Recovery of Other Costs-Income,15/05/2013,1991,12.00,BUTTERWORTHS,M00041,2,2013
Allerdale Borough Council,33112,Income,Planning and Development,Planning Fees Income,15/05/2013,1992,190.00,ST MATTHEWS C OF E SCHOOL,M00042,2,2013
Allerdale Borough Council,33113,Income,Building Control,Building Control Fees Income,15/05/2013,1993,90.72,Redacted information - included personal information ,M00043,2,2013
Allerdale Borough Council,54105,Capital Expenditure,Housing Act 1989 - Facilities,Grants  Private Individuals (Capital),15/05/2013,1994,"3,054.90",CROZIER CONSTRUCTION,X00214,2,2013
Allerdale Borough Council,10602,Employee Costs,Training,Post Entry Training,15/05/2013,1995,150.00,CIPFA,A00572,2,2013
Allerdale Borough Council,10602,Employee Costs,Training,Post Entry Training,15/05/2013,1996,50.00,CIPFA,A00572,2,2013
Allerdale Borough Council,15502,Supplies & Services,Legal Services,Land Registry Fees,14/05/2013,1997,39.00,HM LAND REGISTRY,A00505,2,2013
Allerdale Borough Council,72101,Holding and Control Accounts,Derwent and Solway,Expenditure,14/05/2013,1998,"6,367.81",DERWENT & SOLWAY,A00219,2,2013
Allerdale Borough Council,72101,Holding and Control Accounts,Derwent and Solway,Expenditure,14/05/2013,1999,"3,739.74",DERWENT & SOLWAY,A00219,2,2013
Allerdale Borough Council,72101,Holding and Control Accounts,Derwent and Solway,Expenditure,14/05/2013,2000,"8,000.96",DERWENT & SOLWAY,A00219,2,2013
Allerdale Borough Council,72101,Holding and Control Accounts,Derwent and Solway,Expenditure,14/05/2013,2001,"5,593.45",DERWENT & SOLWAY,A00219,2,2013
Allerdale Borough Council,72101,Holding and Control Accounts,Derwent and Solway,Expenditure,14/05/2013,2002,"3,535.90",DERWENT & SOLWAY,A00219,2,2013
Allerdale Borough Council,15500,Supplies & Services,Planning Policy,Budget-Services,15/05/2013,2003,"4,930.00",TULLIE HOUSE MUSEUM & ART GALLERY TRUST,A01238,2,2013
Allerdale Borough Council,20102,Third Party Payments,Recycling,Horticulture (Obsolete),15/05/2013,2004,322.50,THOMPSONS PLANT HIRE LTD,A00262,2,2013
Allerdale Borough Council,16150,Supplies & Services,Sports Development,General Promotions,15/05/2013,2005,271.53,YOUTH SPORT DIRECT LTD,A01795,2,2013
Allerdale Borough Council,14104,,Recycling,Repairs & Maintenance,15/05/2013,2006,280.00,MARYPORT CAR CENTRE,A00510,2,2013
Allerdale Borough Council,20102,Third Party Payments,Recycling,Horticulture (Obsolete),15/05/2013,2007,"1,730.28",THOMPSONS PLANT HIRE LTD,A00262,2,2013
Allerdale Borough Council,20102,Third Party Payments,Recycling,Horticulture (Obsolete),15/05/2013,2008,208.96,THOMPSONS PLANT HIRE LTD,A00262,2,2013
Allerdale Borough Council,12302,Premises,Homelessness,Building Cleaning,15/05/2013,2009,25.50,THE LAUNDRY STUDIO,A00225,2,2013
Allerdale Borough Council,12201,Premises,Homelessness,Internal Maintenance,29/05/2013,2010,207.21,DERWENT & SOLWAY (BACS &DIRECT DEBIT),A00219,2,2013
Allerdale Borough Council,15813,Supplies & Services,Carnegie Theatre,Software Miscellaneous,15/05/2013,2011,-250.00,LANDMARK INFORMATION GROUP LTD,A00813,2,2013
Allerdale Borough Council,15813,Supplies & Services,Carnegie Theatre,Software Miscellaneous,15/05/2013,2012,250.00,LANDMARK INFORMATION GROUP LTD,A00813,2,2013
Allerdale Borough Council,14202,,Recycling,Hire Car and petrol,22/05/2013,2013,110.77,ENTERPRISE RENT A CAR,A01367,2,2013
Allerdale Borough Council,15603,Supplies & Services,Document Management Pay Group,Franking Machine Costs,29/05/2013,2014,35.00,FP EXECUTIVE AGENCY LTD,A00733,2,2013
Allerdale Borough Council,15603,Supplies & Services,Document Management Pay Group,Franking Machine Costs,29/05/2013,2015,300.00,FP EXECUTIVE AGENCY LTD,A00733,2,2013
Allerdale Borough Council,16150,Supplies & Services,Carnegie Theatre,General Promotions,22/05/2013,2016,120.00,CUMBRIAN NEWSPAPERS LIMITED,A00869,2,2013
Allerdale Borough Council,14105,,Mayoral Services,"Fuel, Lubricants & Consumables",22/05/2013,2017,139.18,EILBECK RENTAL,A01161,2,2013
Allerdale Borough Council,15804,Supplies & Services,Shared IT Services,Computer Data Lines B.T.,22/05/2013,2018,31.85,CABLE & WIRELESS/VODAFONE,A00934,2,2013
Allerdale Borough Council,15803,Supplies & Services,Shared IT Services,Hardware Purchase,22/05/2013,2019,"1,886.00",COOLSPIRIT LTD,A01085,2,2013
Allerdale Borough Council,15804,Supplies & Services,Shared IT Services,Computer Data Lines B.T.,22/05/2013,2020,"2,156.00",BRITISH TELECOMMUNICATIONS,X00004,2,2013
Allerdale Borough Council,15703,Supplies & Services,Shared IT Services,Call Charges,22/05/2013,2021,545.73,CABLE & WIRELESS/VODAFONE,A00934,2,2013
Allerdale Borough Council,15808,Supplies & Services,Shared IT Services,Computer Consumables,29/05/2013,2022,66.20,MISCO,A00125,2,2013
Allerdale Borough Council,15808,Supplies & Services,Shared IT Services,Computer Consumables,29/05/2013,2023,4.75,MISCO,A00125,2,2013
Allerdale Borough Council,15400,Supplies & Services,Document Management Pay Group,"Budget-Printing,Stationery & Office Supp",29/05/2013,2024,424.49,LYRECO,A00043,2,2013
Allerdale Borough Council,15808,Supplies & Services,Shared IT Services,Computer Consumables,05/06/2013,2025,29.03,MISCO,A00125,2,2013
Allerdale Borough Council,12306,Premises,Public Convenience Cleaning,Legionella Inspections and Services,22/05/2013,2026,173.72,RENTOKIL INITIAL UK LIMITED,A01790,2,2013
Allerdale Borough Council,12305,Premises,Corporate Property,Inspections and Services,22/05/2013,2027,490.50,BORDER FOOD MACHINERY,A00388,2,2013
Allerdale Borough Council,20150,Third Party Payments,Footways,General Partnership Service Fees,22/05/2013,2028,926.00,ELECTRICITY NORTH WEST LTD,A00471,2,2013
Allerdale Borough Council,20150,Third Party Payments,Footways,General Partnership Service Fees,22/05/2013,2029,926.00,ELECTRICITY NORTH WEST LTD,A00471,2,2013
Allerdale Borough Council,12101,Premises,Corporate Property,External Maintenance & Decoration,22/05/2013,2030,31.57,TRAVIS PERKINS,A00742,2,2013
Allerdale Borough Council,12305,Premises,Public Convenience Cleaning,Inspections and Services,29/05/2013,2031,178.34,PHS GROUP LTD,C00028,2,2013
Allerdale Borough Council,15101,Supplies & Services,Public Building Cleaning,Equipment Costs,22/05/2013,2032,25.30,WF CLEANING SERVICES LTD,C00013,2,2013
Allerdale Borough Council,12309,Premises,Corporate Property,Fire and Safety,29/05/2013,2033,30.00,ORIAN SOLUTIONS LTD,A01814,2,2013
Allerdale Borough Council,15501,Supplies & Services,Planning and Development,Consultants Fees,22/05/2013,2034,"5,725.93",WARDELL ARMSTRONG LLP,A01676,2,2013
Allerdale Borough Council,16101,Supplies & Services,Planning and Development,Statutory Notices,22/05/2013,2035,623.04,CUMBRIA CC,A00066,2,2013
Allerdale Borough Council,16101,Supplies & Services,Planning and Development,Statutory Notices,22/05/2013,2036,"1,141.48",CUMBRIA CC,A00066,2,2013
Allerdale Borough Council,16101,Supplies & Services,Planning and Development,Statutory Notices,22/05/2013,2037,"1,429.55",CUMBRIA CC,A00066,2,2013
Allerdale Borough Council,15505,Supplies & Services,Planning and Development,Licences,22/05/2013,2038,87.00,CENTREMAPS,A00512,2,2013
Allerdale Borough Council,16101,Supplies & Services,Planning and Development,Statutory Notices,22/05/2013,2039,442.70,CUMBRIA CC,A00066,2,2013
Allerdale Borough Council,16101,Supplies & Services,Planning and Development,Statutory Notices,22/05/2013,2040,"1,419.66",CUMBRIA CC,A00066,2,2013
Allerdale Borough Council,16101,Supplies & Services,Planning and Development,Statutory Notices,22/05/2013,2041,"1,287.98",CUMBRIA CC,A00066,2,2013
Allerdale Borough Council,16101,Supplies & Services,Planning and Development,Statutory Notices,22/05/2013,2042,865.06,CUMBRIA CC,A00066,2,2013
Allerdale Borough Council,16101,Supplies & Services,Planning and Development,Statutory Notices,22/05/2013,2043,712.61,CUMBRIA CC,A00066,2,2013
Allerdale Borough Council,12103,Premises,Parks and Grounds Maintenance,Grounds Maintenance,22/05/2013,2044,"1,260.00",ISS WATERERS LANDSCAPE,C00044,2,2013
Allerdale Borough Council,12103,Premises,Parks and Grounds Maintenance,Grounds Maintenance,22/05/2013,2045,"4,080.00",ISS WATERERS LANDSCAPE,C00044,2,2013
Allerdale Borough Council,15402,Supplies & Services,Customer Services Pay Group,Photocopier Charges,29/05/2013,2046,3.68,RICOH UK LTD,A00037,2,2013
Allerdale Borough Council,15501,Supplies & Services,Corporate Improvement Team,Consultants Fees,22/05/2013,2047,"1,500.00",AWAZ CUMBRIA CIC,A01629,2,2013
Allerdale Borough Council,12403,Premises,Tenanted Properties,Gas,22/05/2013,2048,29.93,EON,X00016,2,2013
Allerdale Borough Council,15604,Supplies & Services,Document Management Pay Group,Franking Machine refills,22/05/2013,2049,300.00,FP EXECUTIVE AGENCY LTD,A00733,2,2013
Allerdale Borough Council,12303,Premises,Corporate Property,Window Cleaning,22/05/2013,2050,131.78,J A LEE WINDOWS,A00051,2,2013
Allerdale Borough Council,15508,Supplies & Services,Corporate Management,Subscriptions,05/06/2013,2051,150.00,DISTRICT COUNCILS NETWORK,A01466,2,2013
Allerdale Borough Council,12103,Premises,Coastal Protection and Inland Flooding,Grounds Maintenance,05/06/2013,2052,"1,390.00",JOHN ELLIOTT LIMITED,C00023,2,2013
Allerdale Borough Council,12405,Premises,Homelessness,Rentals and Lease Charges,22/05/2013,2053,"1,194.54",HOME GROUP LTD,A00423,2,2013
Allerdale Borough Council,16350,Supplies & Services,Elections,Miscellaneous Expenses,22/05/2013,2054,44.55,SHAW & SONS LTD,A00025,2,2013
Allerdale Borough Council,10601,Employee Costs,Finance and Accounting Pay Group,External Courses & Seminar Fees,22/05/2013,2055,295.35,COPELAND BOROUGH COUNCIL,A00589,2,2013
Allerdale Borough Council,15508,Supplies & Services,Housing Services Pay Group,Subscriptions,22/05/2013,2056,60.00,CARLISLE CITY COUNCIL,A00161,2,2013
Allerdale Borough Council,10401,Employee Costs,Planning and Development,Agency Staff Costs,22/05/2013,2057,914.96,THE OYSTER PARTNERSHIP LTD,C00118,2,2013
Allerdale Borough Council,10401,Employee Costs,Planning and Development,Agency Staff Costs,22/05/2013,2058,865.14,THE OYSTER PARTNERSHIP LTD,C00118,2,2013
Allerdale Borough Council,10401,Employee Costs,Planning and Development,Agency Staff Costs,22/05/2013,2059,949.02,THE OYSTER PARTNERSHIP LTD,C00118,2,2013
Allerdale Borough Council,10401,Employee Costs,Planning and Development,Agency Staff Costs,22/05/2013,2060,887.20,THE OYSTER PARTNERSHIP LTD,C00118,2,2013
Allerdale Borough Council,15508,Supplies & Services,Environmental Health Pay Group,Subscriptions,12/06/2013,2061,"1,200.00",RICARDO-AEA LTD,A01816,2,2013
Allerdale Borough Council,20150,Third Party Payments,Footways,General Partnership Service Fees,22/05/2013,2062,940.00,J B FENCING,C00075,2,2013
Allerdale Borough Council,12101,Premises,Other Land & Buildings,External Maintenance & Decoration,22/05/2013,2063,180.00,J B FENCING,C00075,2,2013
Allerdale Borough Council,15202,Supplies & Services,Carnegie Theatre,Bar Provision,29/05/2013,2064,90.00,BAR THIRTY TWO LIMITED,A01300,2,2013
Allerdale Borough Council,12303,Premises,Corporate Property,Window Cleaning,22/05/2013,2065,234.85,J A LEE WINDOWS,A00051,2,2013
Allerdale Borough Council,16101,Supplies & Services,Planning and Development,Statutory Notices,22/05/2013,2066,"1,116.76",CUMBRIA CC - 3C STUDIO,A00070,2,2013
Allerdale Borough Council,16101,Supplies & Services,Planning and Development,Statutory Notices,22/05/2013,2067,"1,208.10",CUMBRIA CC - 3C STUDIO,A00070,2,2013
Allerdale Borough Council,15501,Supplies & Services,Human Resources Pay Group,Consultants Fees,22/05/2013,2068,83.70,BURNETTS SOLICITORS,A00129,2,2013
Allerdale Borough Council,15501,Supplies & Services,Homelessness,Consultants Fees,22/05/2013,2069,33.00,WIGTON GROUP MEDICAL PRACTICE,A00460,2,2013
Allerdale Borough Council,21203,Transfer Payments,Enterprise Coaches,Council Tax / Community Charge,22/05/2013,2070,160.30,COPELAND BOROUGH COUNCIL,A00589,2,2013
Allerdale Borough Council,15550,Supplies & Services,Bereavement Services,General-Service Related Fees,12/06/2013,2071,500.00,JOHN HILL & SONS,A01804,2,2013
Allerdale Borough Council,15808,Supplies & Services,Shared IT Services,Computer Consumables,05/06/2013,2072,35.62,MISCO,A00125,2,2013
Allerdale Borough Council,10601,Employee Costs,Shared IT Services Pay Group,External Courses & Seminar Fees,29/05/2013,2073,"1,674.81",HSBC CARD SERVICES,X00000,2,2013
Allerdale Borough Council,15808,Supplies & Services,Shared IT Services,Computer Consumables,16/05/2013,2074,110.19,HSBC CARD SERVICES,X00000,2,2013
Allerdale Borough Council,16350,Supplies & Services,Senior Mgt/PA Pay Group,Miscellaneous Expenses,29/05/2013,2075,68.46,BARCLAYCARD COMMERCIAL,X00207,2,2013
Allerdale Borough Council,15201,Supplies & Services,Senior Mgt/PA Pay Group,Entertainment Of Visitors,29/05/2013,2076,51.20,BARCLAYCARD COMMERCIAL,X00207,2,2013
Allerdale Borough Council,16350,Supplies & Services,Planning and Development,Miscellaneous Expenses,29/05/2013,2077,178.00,BARCLAYCARD COMMERCIAL,X00207,2,2013
Allerdale Borough Council,14105,,Solway Coast AONB,"Fuel, Lubricants & Consumables",20/05/2013,2078,527.12,BP OIL UK LTD,X00022,2,2013
Allerdale Borough Council,14105,,Parking Services Pay Group,"Fuel, Lubricants & Consumables",20/05/2013,2079,366.84,BP OIL UK LTD,X00022,2,2013
Allerdale Borough Council,14105,,Parking Services Pay Group,"Fuel, Lubricants & Consumables",,2080,619.71,BP OIL UK LTD,X00022,2,2013
Allerdale Borough Council,51101,Capital Expenditure,KMAG Enhancement Project,External Contractor Payments (Capital),05/06/2013,2081,"6,650.00",BOX CLEVER STORAGE,A00880,2,2013
Allerdale Borough Council,12403,Premises,Corporate Property,Gas,22/05/2013,2082,629.27,BRITISH GAS,X00006,2,2013
Allerdale Borough Council,12305,Premises,Public Convenience Cleaning,Inspections and Services,29/05/2013,2083,-95.31,PHS GROUP LTD,C00028,2,2013
Allerdale Borough Council,12305,Premises,Public Convenience Cleaning,Inspections and Services,29/05/2013,2084,-33.28,PHS GROUP LTD,C00028,2,2013
Allerdale Borough Council,12305,Premises,Public Convenience Cleaning,Inspections and Services,29/05/2013,2085,-17.71,PHS GROUP LTD,C00028,2,2013
Allerdale Borough Council,12305,Premises,Public Convenience Cleaning,Inspections and Services,29/05/2013,2086,-126.55,PHS GROUP LTD,C00028,2,2013
Allerdale Borough Council,12403,Premises,Corporate Property,Gas,22/05/2013,2087,464.39,BRITISH GAS,X00006,2,2013
Allerdale Borough Council,12403,Premises,Corporate Property,Gas,22/05/2013,2088,"1,320.76",BRITISH GAS,X00006,2,2013
Allerdale Borough Council,12403,Premises,Corporate Property,Gas,22/05/2013,2089,81.49,BRITISH GAS,X00006,2,2013
Allerdale Borough Council,12403,Premises,Corporate Property,Gas,22/05/2013,2090,388.57,BRITISH GAS,X00006,2,2013
Allerdale Borough Council,51101,Capital Expenditure,KMAG Enhancement Project,External Contractor Payments (Capital),05/06/2013,2091,"-6,650.00",BOX CLEVER STORAGE,A00880,2,2013
Allerdale Borough Council,15507,Supplies & Services,Land Charges Service,Searches,22/05/2013,2092,"1,745.70",CUMBRIA CC,A00066,2,2013
Allerdale Borough Council,12403,Premises,Corporate Property,Gas,22/05/2013,2093,627.78,BRITISH GAS,X00006,2,2013
Allerdale Borough Council,12408,Premises,Corporate Property,Water & Sewage,22/05/2013,2094,37.21,UNITED UTILITIES,X00011,2,2013
Allerdale Borough Council,15514,Supplies & Services,Mayor's Fund,Public Entertainment,22/05/2013,2095,"3,053.57",ARMATHWAITE HALL,A01468,2,2013
Allerdale Borough Council,14150,,Gates Travel,General-Council Vehicles (Non-Capital),29/05/2013,2096,"-1,477.36",GATES TRAVEL,A01525,2,2013
Allerdale Borough Council,14105,,Parking Services Pay Group,"Fuel, Lubricants & Consumables",20/05/2013,2097,457.81,BP OIL UK LTD,X00022,2,2013
Allerdale Borough Council,14105,,Parking Services Pay Group,"Fuel, Lubricants & Consumables",20/05/2013,2098,351.97,BP OIL UK LTD,X00022,2,2013
Allerdale Borough Council,14105,,Parking Services Pay Group,"Fuel, Lubricants & Consumables",,2099,309.66,BP OIL UK LTD,X00022,2,2013
Allerdale Borough Council,15502,Supplies & Services,Legal Services,Land Registry Fees,21/05/2013,2100,23.00,HM LAND REGISTRY,A00505,2,2013
Allerdale Borough Council,15502,Supplies & Services,Legal Services,Land Registry Fees,16/05/2013,2101,59.00,HM LAND REGISTRY,A00505,2,2013
Allerdale Borough Council,54105,Capital Expenditure,Housing Act 1989 - Facilities,Grants  Private Individuals (Capital),22/05/2013,2102,"3,769.86",Redacted information - included personal information ,M00155,2,2013
Allerdale Borough Council,54105,Capital Expenditure,Derwentside Renewal Works,Grants  Private Individuals (Capital),22/05/2013,2103,"1,068.00",Redacted information - included personal information ,M00156,2,2013
Allerdale Borough Council,81602,Balance Sheet,General Fund,Prov-Insurance Excess (Balance Sheet),22/05/2013,2104,40.00,Redacted information - included personal information ,M00157,2,2013
Allerdale Borough Council,20102,Third Party Payments,Recycling,Horticulture (Obsolete),22/05/2013,2105,"1,716.10",FCC RECYCLING (UK) LTD (ALCO),A00185,2,2013
Allerdale Borough Council,20305,Third Party Payments,Maryport Wave,Contract Services-Leisure Centres,22/05/2013,2106,"82,720.00",CARLISLE LEISURE LTD,A00136,2,2013
Allerdale Borough Council,20305,Third Party Payments,Sports & Leisure Centres,Contract Services-Leisure Centres,22/05/2013,2107,"198,230.00",CARLISLE LEISURE LTD,A00136,2,2013
Allerdale Borough Council,10202,Employee Costs,Human Resources Pay Group,Medical Screening,22/05/2013,2108,424.36,WELLWORK LTD,A00029,2,2013
Allerdale Borough Council,10501,Employee Costs,Corporate Recruitment,Advertising Vacancies,22/05/2013,2109,822.45,CUMBRIA CC - 3C STUDIO,A00070,2,2013
Allerdale Borough Council,15508,Supplies & Services,Coalfield Alliance Subs,Subscriptions,22/05/2013,2110,"3,250.00",BARNSLEY MBC - THE ALLIANCE,A00613,2,2013
Allerdale Borough Council,10602,Employee Costs,Training,Post Entry Training,22/05/2013,2111,775.00,VERNER WHEELOCK ASSOCIATES LTD,A01771,2,2013
Allerdale Borough Council,15514,Supplies & Services,Carnegie Theatre,Public Entertainment,29/05/2013,2113,150.00,BRIGHT LITES UK LTD,A01325,2,2013
Allerdale Borough Council,16150,Supplies & Services,Town Centre Management,General Promotions,22/05/2013,2114,200.00,CUMBRIAN NEWSPAPERS LIMITED,A00869,2,2013
Allerdale Borough Council,20305,Third Party Payments,Maryport Wave,Contract Services-Leisure Centres,22/05/2013,2115,"16,385.83",CARLISLE LEISURE LTD,A00136,2,2013
Allerdale Borough Council,15101,Supplies & Services,Recycling,Equipment Costs,05/06/2013,2116,"9,708.50",BPI RECYCLED PRODUCTS,A00318,2,2013
Allerdale Borough Council,15405,Supplies & Services,Parking Services Pay Group,Use of External Printers,22/05/2013,2117,860.00,NAGELS MULTIGRAPHIC LTD,A00690,2,2013
Allerdale Borough Council,12101,Premises,Public Convenience Cleaning,External Maintenance & Decoration,22/05/2013,2118,110.00,UNBLOCK CUMBRIA LTD,C00005,2,2013
Allerdale Borough Council,12101,Premises,Corporate Property,External Maintenance & Decoration,12/06/2013,2119,"1,581.66",CUMBRIA SUPERGLAZE,A00982,2,2013
Allerdale Borough Council,12301,Premises,Corporate Property,Security,22/05/2013,2120,15.12,G4S SECURE SOLUTIONS,A01597,2,2013
Allerdale Borough Council,16150,Supplies & Services,Solway Wetlands Project,General Promotions,22/05/2013,2121,375.00,MICHAELA CORRIE GRAPHIC DESIGN,A00513,2,2013
Allerdale Borough Council,16150,Supplies & Services,Solway Wetlands Project,General Promotions,12/06/2013,2122,"1,470.00",FSC (FIELD STUDIES COUNCIL),A01215,2,2013
Allerdale Borough Council,12203,Premises,Corporate Property,Plumbing and Heating Maintenance,22/05/2013,2123,82.50,ROLAND HILL (PARSONBY) LTD,C00010,2,2013
Allerdale Borough Council,15403,Supplies & Services,Senior Mgt/PA Pay Group,Publications and Periodicals,29/05/2013,2124,220.00,EMAP COMMUNICATIONS,A00281,2,2013
Allerdale Borough Council,15509,Supplies & Services,Elections,Election Costs,22/05/2013,2125,250.00,Redacted information - included personal information ,M00044,2,2013
Allerdale Borough Council,15509,Supplies & Services,Elections,Election Costs,22/05/2013,2126,165.00,ABBEYTOWN ASSEMBLY ROOM,M00045,2,2013
Allerdale Borough Council,15509,Supplies & Services,Elections,Election Costs,22/05/2013,2127,75.00,ALLERDALE CREDIT UNION OFFICE WORKINGTON,M00046,2,2013
Allerdale Borough Council,15509,Supplies & Services,Elections,Election Costs,22/05/2013,2128,70.00,ALL SAINTS SCHOOL LEARNING CENTRE,M00047,2,2013
Allerdale Borough Council,15509,Supplies & Services,Elections,Election Costs,22/05/2013,2129,113.00,ALL SOULS CHURCH HALL,M00048,2,2013
Allerdale Borough Council,15509,Supplies & Services,Elections,Election Costs,22/05/2013,2130,100.00,ALLHALLOWS COMMUNITY CENTRE,M00049,2,2013
Allerdale Borough Council,15509,Supplies & Services,Elections,Election Costs,05/06/2013,2131,150.00,ANTHORN COMMUNITY CENTRE,M00050,2,2013
Allerdale Borough Council,15509,Supplies & Services,Elections,Election Costs,22/05/2013,2132,65.00,ASHFIELD INFANTS SCHOOL,M00051,2,2013
Allerdale Borough Council,15509,Supplies & Services,Elections,Election Costs,22/05/2013,2133,125.00,ASPATRIA COMMUNITY CENTRE (FORMERLY ST KENTIGERNS CHURCH HALL)C,M00052,2,2013
Allerdale Borough Council,15509,Supplies & Services,Elections,Election Costs,22/05/2013,2134,70.00,ASPATRIA LIBRARY,M00053,2,2013
Allerdale Borough Council,15509,Supplies & Services,Elections,Election Costs,22/05/2013,2135,110.00,BAPTIST SUNDAY SCHOOL,M00054,2,2013
Allerdale Borough Council,15509,Supplies & Services,Elections,Election Costs,22/05/2013,2136,100.00,BASSENTHWAITE CHURCH ROOM,M00055,2,2013
Allerdale Borough Council,15509,Supplies & Services,Elections,Election Costs,22/05/2013,2137,70.00,BELL INSTITUTE BOLTONGATE,M00056,2,2013
Allerdale Borough Council,15509,Supplies & Services,Elections,Election Costs,22/05/2013,2138,70.00,BLENCOGO VILLAGE HALL,M00057,2,2013
Allerdale Borough Council,15509,Supplies & Services,Elections,Election Costs,22/05/2013,2139,120.00,BLENNERHASSET VILLAGE HALL,M00058,2,2013
Allerdale Borough Council,15509,Supplies & Services,Elections,Election Costs,22/05/2013,2140,150.00,BLINDCRAKE VILLAGE HALL,M00059,2,2013
Allerdale Borough Council,15509,Supplies & Services,Elections,Election Costs,22/05/2013,2141,120.00,BOLTONS VILLAGE HALL,M00060,2,2013
Allerdale Borough Council,15509,Supplies & Services,Elections,Election Costs,22/05/2013,2142,100.00,BORROWDALE INSTITUTE ROSTHWAITE,M00061,2,2013
Allerdale Borough Council,15509,Supplies & Services,Elections,Election Costs,22/05/2013,2143,110.00,BOTHEL VILLAGE HALL,M00062,2,2013
Allerdale Borough Council,15509,Supplies & Services,Elections,Election Costs,22/05/2013,2144,150.00,BROUGHTION MOOR SCHOOL,M00063,2,2013
Allerdale Borough Council,15509,Supplies & Services,Elections,Election Costs,22/05/2013,2145,140.00,BROUGHTON VILLAGE HALL,M00064,2,2013
Allerdale Borough Council,15509,Supplies & Services,Elections,Election Costs,22/05/2013,2146,90.00,BUTTERMERE CHURCH HALL,M00065,2,2013
Allerdale Borough Council,15509,Supplies & Services,Elections,Election Costs,22/05/2013,2147,60.00,CAMERTON VILLAGE HALL,M00066,2,2013
Allerdale Borough Council,15509,Supplies & Services,Elections,Election Costs,22/05/2013,2148,40.00,CHAPEL SUNDAY SCHOOL HESKET NEWMARKET,M00067,2,2013
Allerdale Borough Council,15509,Supplies & Services,Elections,Election Costs,22/05/2013,2149,125.00,CHRIST CHURCH HALL SOLWAY STREET,M00068,2,2013
Allerdale Borough Council,15509,Supplies & Services,Elections,Election Costs,22/05/2013,2150,100.00,CROSSCANONBY PARISH COMMUNITY CENTRE,M00069,2,2013
Allerdale Borough Council,15509,Supplies & Services,Elections,Election Costs,22/05/2013,2151,120.00,CROSTHWAITE PARISH ROOMS,M00070,2,2013
Allerdale Borough Council,15509,Supplies & Services,Elections,Election Costs,22/05/2013,2152,105.00,CULTERHAM HALL MAWBRAY,M00071,2,2013
Allerdale Borough Council,15509,Supplies & Services,Elections,Election Costs,22/05/2013,2153,99.00,DEARHAM PARISH HALL,M00072,2,2013
Allerdale Borough Council,15509,Supplies & Services,Elections,Election Costs,22/05/2013,2154,250.00,EAGLESFIELD PADDLE CE PRIMARY SCHOOL ACADEMY,M00073,2,2013
Allerdale Borough Council,15509,Supplies & Services,Elections,Election Costs,22/05/2013,2155,160.00,ELLENBOROUGH METHODIST CHURCH HALL,M00074,2,2013
Allerdale Borough Council,15509,Supplies & Services,Elections,Election Costs,22/05/2013,2156,100.00,EMBLETON & DISTRICT PUBLIC HALL,M00075,2,2013
Allerdale Borough Council,15509,Supplies & Services,Elections,Election Costs,22/05/2013,2157,150.00,EWANRIGG AND NETHERTON COMMUNITY CENTRE,M00076,2,2013
Allerdale Borough Council,15509,Supplies & Services,Elections,Election Costs,22/05/2013,2158,160.00,FLIMBY METHODIST CHAPEL,M00077,2,2013
Allerdale Borough Council,15509,Supplies & Services,Elections,Election Costs,22/05/2013,2159,120.00,GILCRUX VILLAGE HALL,M00078,2,2013
Allerdale Borough Council,15509,Supplies & Services,Elections,Election Costs,22/05/2013,2160,94.00,GLOBE HALL IREBY,M00079,2,2013
Allerdale Borough Council,15509,Supplies & Services,Elections,Election Costs,22/05/2013,2161,80.00,GRASSLOT WELFARE SOCIAL CLUB,M00080,2,2013
Allerdale Borough Council,15509,Supplies & Services,Elections,Election Costs,22/05/2013,2162,149.50,GRASSMOOR SPORTS CENTRE,M00081,2,2013
Allerdale Borough Council,15509,Supplies & Services,Elections,Election Costs,22/05/2013,2163,200.00,GREAT BROUGHTON BRITISH LEGION,M00082,2,2013
Allerdale Borough Council,15509,Supplies & Services,Elections,Election Costs,22/05/2013,2164,75.00,GREAT CLIFTON VILLAGE,M00083,2,2013
Allerdale Borough Council,15509,Supplies & Services,Elections,Election Costs,22/05/2013,2165,60.00,GREENROW PENTECOSTAL CHURCH,M00084,2,2013
Allerdale Borough Council,15509,Supplies & Services,Elections,Election Costs,22/05/2013,2166,80.00,GREYSOUTHEN VILLAGE HALL,M00085,2,2013
Allerdale Borough Council,15509,Supplies & Services,Elections,Election Costs,22/05/2013,2167,75.00,HARRIS PARK BOWLING CLUB,M00086,2,2013
Allerdale Borough Council,15509,Supplies & Services,Elections,Election Costs,22/05/2013,2168,150.00,HELENA THOMPSON MUSEUM,M00087,2,2013
Allerdale Borough Council,15509,Supplies & Services,Elections,Election Costs,22/05/2013,2169,200.00,HIGH HARRINGTON COMMUNITY CENTRE,M00088,2,2013
Allerdale Borough Council,15509,Supplies & Services,Elections,Election Costs,22/05/2013,2170,180.00,HIGHLAND LADDIE GLASSON,M00089,2,2013
Allerdale Borough Council,15509,Supplies & Services,Elections,Election Costs,22/05/2013,2171,50.00,HOLME ST CUTHBERT CHURCH HALL,M00090,2,2013
Allerdale Borough Council,15509,Supplies & Services,Elections,Election Costs,22/05/2013,2172,150.00,KIRKBAMPTON VILLAGE HALL,M00091,2,2013
Allerdale Borough Council,15509,Supplies & Services,Elections,Election Costs,22/05/2013,2173,65.00,KIRKBRIDE SCHOOL,M00092,2,2013
Allerdale Borough Council,15509,Supplies & Services,Elections,Election Costs,22/05/2013,2174,120.00,KIRKSTILE COMMUNITY CENTRE,M00093,2,2013
Allerdale Borough Council,15509,Supplies & Services,Elections,Election Costs,22/05/2013,2175,20.00,LAYBOURN HOUSE,M00094,2,2013
Allerdale Borough Council,15509,Supplies & Services,Elections,Election Costs,22/05/2013,2176,100.00,LINDOW HALL BOWNESS,M00095,2,2013
Allerdale Borough Council,15509,Supplies & Services,Elections,Election Costs,22/05/2013,2177,130.00,LITTLE CLIFTON VILLAGE HALL,M00096,2,2013
Allerdale Borough Council,15509,Supplies & Services,Elections,Election Costs,22/05/2013,2178,175.00,LOWESWATER VILLAGE HALL,M00097,2,2013
Allerdale Borough Council,15509,Supplies & Services,Elections,Election Costs,22/05/2013,2179,183.00,LOW MOOR EVANGELICAL CHURCH,M00098,2,2013
Allerdale Borough Council,15509,Supplies & Services,Elections,Election Costs,22/05/2013,2180,100.00,MEMORIAL HALL BRIGHAM,M00099,2,2013
Allerdale Borough Council,15509,Supplies & Services,Elections,Election Costs,22/05/2013,2181,140.00,METHODIST CHURCH KESWICK,M00100,2,2013
Allerdale Borough Council,15509,Supplies & Services,Elections,Election Costs,22/05/2013,2182,250.00,MILLFIELD RETIREMENT HOME,M00101,2,2013
Allerdale Borough Council,15509,Supplies & Services,Elections,Election Costs,22/05/2013,2183,240.00,MOORCLOSE COMMUNITY CENTRE,M00102,2,2013
Allerdale Borough Council,15509,Supplies & Services,Elections,Election Costs,22/05/2013,2184,70.00,NEW HALL SEBERGHAM,M00103,2,2013
Allerdale Borough Council,15509,Supplies & Services,Elections,Election Costs,22/05/2013,2185,105.00,NEWLANDS OLD SCHOOLROOM,M00104,2,2013
Allerdale Borough Council,15509,Supplies & Services,Elections,Election Costs,22/05/2013,2186,225.00,NEWTON ARLOSH PARISH HALL,M00105,2,2013
Allerdale Borough Council,15509,Supplies & Services,Elections,Election Costs,22/05/2013,2187,150.00,NORTHSIDE YOUTH CENTRE,M00106,2,2013
Allerdale Borough Council,15509,Supplies & Services,Elections,Election Costs,22/05/2013,2188,160.00,NWWA TREATMENT WORKS,M00107,2,2013
Allerdale Borough Council,15509,Supplies & Services,Elections,Election Costs,22/05/2013,2189,100.00,OULTON PARISH INSTITUTE,M00108,2,2013
Allerdale Borough Council,15509,Supplies & Services,Elections,Election Costs,22/05/2013,2190,75.00,OUR LADY & ST PATRICKS COMMUNITY CENTRE,M00109,2,2013
Allerdale Borough Council,15509,Supplies & Services,Elections,Election Costs,22/05/2013,2191,40.00,PAPCASTLE & BELLE VUE VILLAGE HALL,M00110,2,2013
Allerdale Borough Council,15509,Supplies & Services,Elections,Election Costs,22/05/2013,2192,90.00,PARISH ROOM CALDBECK,M00111,2,2013
Allerdale Borough Council,15509,Supplies & Services,Elections,Election Costs,22/05/2013,2193,65.00,PARISH ROOM AIKTON,M00112,2,2013
Allerdale Borough Council,15509,Supplies & Services,Elections,Election Costs,22/05/2013,2194,100.00,PLUMBLAND VILLAGE HALL,M00113,2,2013
Allerdale Borough Council,15509,Supplies & Services,Elections,Election Costs,22/05/2013,2195,120.00,PROSPECT VILLAGE HALL,M00114,2,2013
Allerdale Borough Council,15509,Supplies & Services,Elections,Election Costs,22/05/2013,2196,160.00,QUEEN STREET HALL,M00115,2,2013
Allerdale Borough Council,15509,Supplies & Services,Elections,Election Costs,22/05/2013,2197,80.00,ROSLEY VILLAGE HALL,M00116,2,2013
Allerdale Borough Council,15509,Supplies & Services,Elections,Election Costs,22/05/2013,2198,65.00,SEATON C OF E JUNIOR SCHOOL,M00117,2,2013
Allerdale Borough Council,15509,Supplies & Services,Elections,Election Costs,22/05/2013,2199,250.00,SOLWAY COMMUNITY TECHNOLOGY COLLEGE (SPORTS HALL),M00118,2,2013
Allerdale Borough Council,15509,Supplies & Services,Elections,Election Costs,05/06/2013,2200,60.00,ST. GREGORYS RC SCHOOL (NURSERY CLASS),M00119,2,2013
Allerdale Borough Council,15509,Supplies & Services,Elections,Election Costs,22/05/2013,2201,125.00,ST. JAMES CHURCH HAYTON,M00120,2,2013
Allerdale Borough Council,15509,Supplies & Services,Elections,Election Costs,22/05/2013,2202,225.00,ST. JOHNS PARISH ROOMS,M00121,2,2013
Allerdale Borough Council,15509,Supplies & Services,Elections,Election Costs,22/05/2013,2203,180.00,ST. MARYS CHURCH HALL WESTFIELD,M00122,2,2013
Allerdale Borough Council,15509,Supplies & Services,Elections,Election Costs,22/05/2013,2204,150.00,ST. MARYS CHURCH OF ENGLAND HALL,M00123,2,2013
Allerdale Borough Council,15509,Supplies & Services,Elections,Election Costs,22/05/2013,2205,150.00,ST. MARYS RC CHURCH HALL CHURCH ROAD,M00124,2,2013
Allerdale Borough Council,15509,Supplies & Services,Elections,Election Costs,22/05/2013,2206,100.00,ST. MICHAELS RESOURCE CENTRE,M00125,2,2013
Allerdale Borough Council,15509,Supplies & Services,Elections,Election Costs,22/05/2013,2207,125.00,ST. MUNGOS CHURCH,M00126,2,2013
Allerdale Borough Council,15509,Supplies & Services,Elections,Election Costs,22/05/2013,2208,150.00,ST. PAULS CHURCH HALL,M00127,2,2013
Allerdale Borough Council,15509,Supplies & Services,Elections,Election Costs,22/05/2013,2209,150.00,STABLE RIGG GRANGE,M00128,2,2013
Allerdale Borough Council,15509,Supplies & Services,Elections,Election Costs,22/05/2013,2210,200.00,SUPPER ROOM MASONIC HALL ASPATRIA,M00129,2,2013
Allerdale Borough Council,15509,Supplies & Services,Elections,Election Costs,22/05/2013,2211,100.00,TANGLEWOOD CARAVAN PARK,M00130,2,2013
Allerdale Borough Council,15509,Supplies & Services,Elections,Election Costs,22/05/2013,2212,175.00,THE BUSH INN TALLENTIRE,M00131,2,2013
Allerdale Borough Council,15509,Supplies & Services,Elections,Election Costs,22/05/2013,2213,150.00,THE CONFERENCE ROOM THE MINTO CENTRE,M00132,2,2013
Allerdale Borough Council,15509,Supplies & Services,Elections,Election Costs,22/05/2013,2214,228.00,THE KIRKGATE CENTRE,M00133,2,2013
Allerdale Borough Council,15509,Supplies & Services,Elections,Election Costs,22/05/2013,2215,65.00,THE OFFICE DUNCAN HILL DEPOT,M00134,2,2013
Allerdale Borough Council,15509,Supplies & Services,Elections,Election Costs,22/05/2013,2216,75.00,OVAL,M00135,2,2013
Allerdale Borough Council,15509,Supplies & Services,Elections,Election Costs,22/05/2013,2217,200.00,THE SNOOTY FOX COUNTRY INN ULDALE,M00136,2,2013
Allerdale Borough Council,15509,Supplies & Services,Elections,Election Costs,22/05/2013,2218,75.00,THIRLMERE RECREATION HALL,M00137,2,2013
Allerdale Borough Council,15509,Supplies & Services,Elections,Election Costs,22/05/2013,2219,176.00,THORNTHWAITE-CUM-BRANTHWAITE VICTORY MEMORIAL HALL,M00138,2,2013
Allerdale Borough Council,15509,Supplies & Services,Elections,Election Costs,22/05/2013,2220,25.00,THURSBY PARISH HALL,M00139,2,2013
Allerdale Borough Council,15509,Supplies & Services,Elections,Election Costs,22/05/2013,2221,220.00,TORPENHOW VILLAGE HALL,M00140,2,2013
Allerdale Borough Council,15509,Supplies & Services,Elections,Election Costs,22/05/2013,2222,150.00,VICTORIA HALL,M00141,2,2013
Allerdale Borough Council,15509,Supplies & Services,Elections,Election Costs,22/05/2013,2223,65.00,VICTORIA INFANTS SCHOOL,M00142,2,2013
Allerdale Borough Council,15509,Supplies & Services,Elections,Election Costs,22/05/2013,2224,60.00,VICTORIA JUNIOR SCHOOL,M00143,2,2013
Allerdale Borough Council,15509,Supplies & Services,Elections,Election Costs,22/05/2013,2225,90.00,VILLAGE HALL PORTINSCALE,M00146,2,2013
Allerdale Borough Council,15509,Supplies & Services,Elections,Election Costs,22/05/2013,2226,50.00,VILLAGE HALL MILLBECK,M00145,2,2013
Allerdale Borough Council,15509,Supplies & Services,Elections,Election Costs,22/05/2013,2227,100.00,WADAMS BUILDING,M00147,2,2013
Allerdale Borough Council,15509,Supplies & Services,Elections,Election Costs,22/05/2013,2228,40.00,WAVERTON VILLAGE HALL,M00148,2,2013
Allerdale Borough Council,15509,Supplies & Services,Elections,Election Costs,22/05/2013,2229,80.00,WELTON VILLAGE HALL,M00149,2,2013
Allerdale Borough Council,15509,Supplies & Services,Elections,Election Costs,22/05/2013,2230,45.00,WESTNEWTON VILLAGE HALL,M00150,2,2013
Allerdale Borough Council,15509,Supplies & Services,Elections,Election Costs,22/05/2013,2231,150.00,WESTWARD PARISH ROOM,M00151,2,2013
Allerdale Borough Council,15509,Supplies & Services,Elections,Election Costs,22/05/2013,2232,216.00,WHEYRIGG HALL HOTEL,M00152,2,2013
Allerdale Borough Council,15509,Supplies & Services,Elections,Election Costs,22/05/2013,2233,200.00,WIGTON MARKET HALL,M00153,2,2013
Allerdale Borough Council,15509,Supplies & Services,Elections,Election Costs,22/05/2013,2234,130.00,YEW TREE HALL LORTON,M00154,2,2013
Allerdale Borough Council,15509,Supplies & Services,Elections,Election Costs,22/05/2013,2235,135.00,VILLAGE HALL PORTINSCALE,M00146,2,2013
Allerdale Borough Council,15509,Supplies & Services,Elections,Election Costs,22/05/2013,2236,-90.00,VILLAGE HALL PORTINSCALE,M00146,2,2013
Allerdale Borough Council,15509,Supplies & Services,Elections,Election Costs,22/05/2013,2237,90.00,VILLAGE HALL ALLONBY,M00144,2,2013
Allerdale Borough Council,15401,Supplies & Services,Planning and Development,General Stationery,22/05/2013,2238,62.93,INTEGRITY OFFICE LTD,A00726,2,2013
Allerdale Borough Council,15400,Supplies & Services,Planning and Development,"Budget-Printing,Stationery & Office Supp",22/05/2013,2239,84.00,INTEGRITY OFFICE LTD,A00726,2,2013
Allerdale Borough Council,15400,Supplies & Services,Planning and Development,"Budget-Printing,Stationery & Office Supp",22/05/2013,2240,490.50,INTEGRITY OFFICE LTD,A00726,2,2013
Allerdale Borough Council,15400,Supplies & Services,Planning and Development,"Budget-Printing,Stationery & Office Supp",22/05/2013,2241,20.36,INTEGRITY OFFICE LTD,A00726,2,2013
Allerdale Borough Council,15400,Supplies & Services,Planning and Development,"Budget-Printing,Stationery & Office Supp",22/05/2013,2242,124.60,INTEGRITY OFFICE LTD,A00726,2,2013
Allerdale Borough Council,15505,Supplies & Services,Carnegie Theatre,Licences,22/05/2013,2243,171.01,PPL,A00246,2,2013
Allerdale Borough Council,15903,Supplies & Services,Members Services,"Courses, Training & Seminars",05/06/2013,2244,5.64,K&R BADGES LIMITED,A01328,2,2013
Allerdale Borough Council,15101,Supplies & Services,Public Building Cleaning,Equipment Costs,29/05/2013,2245,960.78,INSTOCK (CHANDLERS),A00050,2,2013
Allerdale Borough Council,15513,Supplies & Services,Carnegie Theatre,Subcontractors - General,22/05/2013,2246,49.50,Redacted information - included personal information ,A01052,2,2013
Allerdale Borough Council,15510,Supplies & Services,Confidential Waste,Disposal of Waste,29/05/2013,2247,126.00,P&W CONFIDENTIAL BUSINESS SERVICE,A01498,2,2013
Allerdale Borough Council,15808,Supplies & Services,Multi-functional Printers,Computer Consumables,12/06/2013,2248,398.00,XEROX OFFICE SUPPLIES,A00366,2,2013
Allerdale Borough Council,15516,Supplies & Services,Insurances,Insurance Services,22/05/2013,2249,"74,250.68",ZURICH MUNICIPAL,A00429,2,2013
Allerdale Borough Council,15516,Supplies & Services,Insurances,Insurance Services,22/05/2013,2250,689.00,ZURICH MUNICIPAL,A00429,2,2013
Allerdale Borough Council,99902,Suspense Acc,Other Income Suspense Account,Suspense - Income Not Yet Identified,22/05/2013,2251,100.00,COPELAND BOROUGH COUNCIL,M00158,2,2013
Allerdale Borough Council,20305,Third Party Payments,Maryport Wave,Contract Services-Leisure Centres,22/05/2013,2252,"16,386.16",CARLISLE LEISURE LTD,A00136,2,2013
Allerdale Borough Council,12101,Premises,Corporate Property,External Maintenance & Decoration,22/05/2013,2253,239.71,TRAVIS PERKINS,A00742,2,2013
Allerdale Borough Council,12409,Premises,Insurances,Buildings and Contents Insurance,22/05/2013,2254,"7,283.85",AON UK LTD,A01698,2,2013
Allerdale Borough Council,15403,Supplies & Services,Internal Audit Pay Group,Publications and Periodicals,12/06/2013,2255,153.75,CIPFA,A00572,2,2013
Allerdale Borough Council,14103,,Insurances,Insurance Council Vehicles,22/05/2013,2256,"11,805.22",AON UK LTD,A01698,2,2013
Allerdale Borough Council,15516,Supplies & Services,Insurances,Insurance Services,22/05/2013,2257,"1,325.00",AON UK LTD,A01698,2,2013
Allerdale Borough Council,12409,Premises,Insurances,Buildings and Contents Insurance,22/05/2013,2258,"2,933.11",AON UK LTD,A01698,2,2013
Allerdale Borough Council,10801,Employee Costs,Insurances,Insurance of Employees,22/05/2013,2259,966.37,AON UK LTD,A01698,2,2013
Allerdale Borough Council,15516,Supplies & Services,Insurances,Insurance Services,22/05/2013,2260,"74,943.69",AON UK LTD,A01698,2,2013
Allerdale Borough Council,15514,Supplies & Services,Carnegie Theatre,Public Entertainment,22/05/2013,2261,69.64,ALLERDALE BOROUGH COUNCIL,X00034,2,2013
Allerdale Borough Council,15501,Supplies & Services,Sustaining Strategic Parks & Open Spaces,Consultants Fees,22/05/2013,2262,"2,784.00",CEGS,A00062,2,2013
Allerdale Borough Council,10601,Employee Costs,Training,External Courses & Seminar Fees,22/05/2013,2263,265.00,THE CONSULTATION INSTITUTE,A00744,2,2013
Allerdale Borough Council,10601,Employee Costs,Training,External Courses & Seminar Fees,22/05/2013,2264,265.00,THE CONSULTATION INSTITUTE,A00744,2,2013
Allerdale Borough Council,15604,Supplies & Services,Document Management Pay Group,Franking Machine refills,22/05/2013,2265,"3,400.00",ROYAL MAIL LETTERS,X00021,2,2013
Allerdale Borough Council,10202,Employee Costs,Human Resources Pay Group,Medical Screening,12/06/2013,2266,424.36,WELLWORK LTD,A00029,2,2013
Allerdale Borough Council,15508,Supplies & Services,Environmental Initiatives,Subscriptions,12/06/2013,2267,"4,495.00",KEEP BRITAIN TIDY,A01034,2,2013
Allerdale Borough Council,15501,Supplies & Services,Street Cleansing,Consultants Fees,05/06/2013,2268,16.40,DUNDAS CHEMICAL CO (MOSSPARK),A00175,2,2013
Allerdale Borough Council,20305,Third Party Payments,Sports & Leisure Centres,Contract Services-Leisure Centres,22/05/2013,2269,"48,946.66",CARLISLE LEISURE LTD,A00136,2,2013
Allerdale Borough Council,20305,Third Party Payments,Sports & Leisure Centres,Contract Services-Leisure Centres,22/05/2013,2270,"48,946.66",CARLISLE LEISURE LTD,A00136,2,2013
Allerdale Borough Council,21203,Transfer Payments,WISE Project,Council Tax / Community Charge,22/05/2013,2271,76.72,COPELAND BOROUGH COUNCIL,A00589,2,2013
Allerdale Borough Council,15517,Supplies & Services,Shared Revs & Bens,Shared Service Contribution,29/05/2013,2272,"98,816.67",CARLISLE CITY COUNCIL,A00161,2,2013
Allerdale Borough Council,15501,Supplies & Services,Corporate Improvement Team,Consultants Fees,29/05/2013,2273,125.00,OUTREACH CUMBRIA LIMITED,A01630,2,2013
Allerdale Borough Council,15501,Supplies & Services,Corporate Improvement Team,Consultants Fees,,2274,-125.00,OUTREACH CUMBRIA LIMITED,A01630,2,2013
Allerdale Borough Council,12402,Premises,Corporate Property,Electricity,29/05/2013,2275,"1,286.71",N POWER ,X00015,2,2013
Allerdale Borough Council,12402,Premises,Corporate Property,Electricity,29/05/2013,2276,"1,662.21",N POWER ,X00015,2,2013
Allerdale Borough Council,12402,Premises,Corporate Property,Electricity,29/05/2013,2277,"1,972.82",N POWER ,X00015,2,2013
Allerdale Borough Council,12402,Premises,Corporate Property,Electricity,29/05/2013,2278,1.59,N POWER ,X00015,2,2013
Allerdale Borough Council,12402,Premises,Public Convenience Cleaning,Electricity,29/05/2013,2279,4.62,N POWER ,X00015,2,2013
Allerdale Borough Council,12402,Premises,Public Convenience Cleaning,Electricity,29/05/2013,2280,4.67,N POWER ,X00015,2,2013
Allerdale Borough Council,12402,Premises,Public Convenience Cleaning,Electricity,29/05/2013,2281,4.73,N POWER ,X00015,2,2013
Allerdale Borough Council,12402,Premises,Public Convenience Cleaning,Electricity,29/05/2013,2282,3.13,N POWER ,X00015,2,2013
Allerdale Borough Council,12402,Premises,Public Convenience Cleaning,Electricity,29/05/2013,2283,1.53,N POWER ,X00015,2,2013
Allerdale Borough Council,12402,Premises,Public Convenience Cleaning,Electricity,29/05/2013,2284,3.27,N POWER ,X00015,2,2013
Allerdale Borough Council,12402,Premises,Public Convenience Cleaning,Electricity,29/05/2013,2285,-3.87,N POWER ,X00015,2,2013
Allerdale Borough Council,12402,Premises,Public Convenience Cleaning,Electricity,29/05/2013,2286,-11.15,N POWER ,X00015,2,2013
Allerdale Borough Council,12402,Premises,Public Convenience Cleaning,Electricity,29/05/2013,2287,-11.31,N POWER ,X00015,2,2013
Allerdale Borough Council,12402,Premises,Public Convenience Cleaning,Electricity,29/05/2013,2288,-11.48,N POWER ,X00015,2,2013
Allerdale Borough Council,12402,Premises,Public Convenience Cleaning,Electricity,29/05/2013,2289,-7.60,N POWER ,X00015,2,2013
Allerdale Borough Council,12402,Premises,Public Convenience Cleaning,Electricity,29/05/2013,2290,-3.67,N POWER ,X00015,2,2013
Allerdale Borough Council,12402,Premises,Public Convenience Cleaning,Electricity,29/05/2013,2291,-7.84,N POWER ,X00015,2,2013
Allerdale Borough Council,12402,Premises,Public Convenience Cleaning,Electricity,29/05/2013,2292,21.42,N POWER ,X00015,2,2013
Allerdale Borough Council,12402,Premises,Public Convenience Cleaning,Electricity,29/05/2013,2293,19.70,N POWER ,X00015,2,2013
Allerdale Borough Council,12402,Premises,Corporate Property,Electricity,29/05/2013,2294,1.59,N POWER ,X00015,2,2013
Allerdale Borough Council,12402,Premises,Corporate Property,Electricity,29/05/2013,2295,-9.00,N POWER ,X00015,2,2013
Allerdale Borough Council,12402,Premises,Corporate Property,Electricity,29/05/2013,2296,"4,363.17",N POWER ,X00015,2,2013
Allerdale Borough Council,12402,Premises,Corporate Property,Electricity,29/05/2013,2297,211.13,N POWER ,X00015,2,2013
Allerdale Borough Council,12402,Premises,Car Parks Inspection & Maintenance,Electricity,29/05/2013,2298,78.71,N POWER ,X00015,2,2013
Allerdale Borough Council,12402,Premises,Car Parks Inspection & Maintenance,Electricity,29/05/2013,2299,290.62,N POWER ,X00015,2,2013
Allerdale Borough Council,12402,Premises,Footways,Electricity,29/05/2013,2300,"4,569.77",N POWER ,X00015,2,2013
Allerdale Borough Council,12402,Premises,Footways,Electricity,29/05/2013,2301,175.98,N POWER ,X00015,2,2013
Allerdale Borough Council,12402,Premises,Public Convenience Cleaning,Electricity,29/05/2013,2302,1.57,N POWER ,X00015,2,2013
Allerdale Borough Council,12402,Premises,Corporate Property,Electricity,29/05/2013,2303,259.35,N POWER ,X00015,2,2013
Allerdale Borough Council,12402,Premises,Corporate Property,Electricity,29/05/2013,2304,256.44,N POWER ,X00015,2,2013
Allerdale Borough Council,12402,Premises,Corporate Property,Electricity,29/05/2013,2305,-304.17,N POWER ,X00015,2,2013
Allerdale Borough Council,12402,Premises,Corporate Property,Electricity,29/05/2013,2306,-301.86,N POWER ,X00015,2,2013
Allerdale Borough Council,12402,Premises,Corporate Property,Electricity,29/05/2013,2307,288.70,N POWER ,X00015,2,2013
Allerdale Borough Council,12402,Premises,Corporate Property,Electricity,29/05/2013,2308,538.43,N POWER ,X00015,2,2013
Allerdale Borough Council,12402,Premises,Corporate Property,Electricity,29/05/2013,2309,"1,217.64",N POWER ,X00015,2,2013
Allerdale Borough Council,12402,Premises,Corporate Property,Electricity,29/05/2013,2310,-319.58,N POWER ,X00015,2,2013
Allerdale Borough Council,12402,Premises,Corporate Property,Electricity,29/05/2013,2311,-655.01,N POWER ,X00015,2,2013
Allerdale Borough Council,12402,Premises,Corporate Property,Electricity,29/05/2013,2312,29.91,N POWER ,X00015,2,2013
Allerdale Borough Council,12402,Premises,Other Land & Buildings,Electricity,29/05/2013,2313,1.57,N POWER ,X00015,2,2013
Allerdale Borough Council,12402,Premises,Tenanted Properties,Electricity,29/05/2013,2314,5.35,N POWER ,X00015,2,2013
Allerdale Borough Council,12402,Premises,Corporate Property,Electricity,29/05/2013,2315,299.37,N POWER ,X00015,2,2013
Allerdale Borough Council,12402,Premises,Corporate Property,Electricity,29/05/2013,2316,128.26,N POWER ,X00015,2,2013
Allerdale Borough Council,12402,Premises,Other Land & Buildings,Electricity,29/05/2013,2317,2.03,N POWER ,X00015,2,2013
Allerdale Borough Council,12402,Premises,Other Land & Buildings,Electricity,29/05/2013,2318,6.15,N POWER ,X00015,2,2013
Allerdale Borough Council,12402,Premises,Other Land & Buildings,Electricity,29/05/2013,2319,6.88,N POWER ,X00015,2,2013
Allerdale Borough Council,12402,Premises,Other Land & Buildings,Electricity,29/05/2013,2320,-2.03,N POWER ,X00015,2,2013
Allerdale Borough Council,12402,Premises,Other Land & Buildings,Electricity,29/05/2013,2321,-5.82,N POWER ,X00015,2,2013
Allerdale Borough Council,12402,Premises,Other Land & Buildings,Electricity,29/05/2013,2322,-10.04,N POWER ,X00015,2,2013
Allerdale Borough Council,12402,Premises,Corporate Property,Electricity,29/05/2013,2323,6.71,N POWER ,X00015,2,2013
Allerdale Borough Council,12402,Premises,Corporate Property,Electricity,29/05/2013,2324,-1.92,N POWER ,X00015,2,2013
Allerdale Borough Council,12402,Premises,Public Convenience Cleaning,Electricity,29/05/2013,2325,6.04,N POWER ,X00015,2,2013
Allerdale Borough Council,12402,Premises,Public Convenience Cleaning,Electricity,29/05/2013,2326,3.64,N POWER ,X00015,2,2013
Allerdale Borough Council,12402,Premises,Public Convenience Cleaning,Electricity,29/05/2013,2327,59.98,N POWER ,X00015,2,2013
Allerdale Borough Council,99902,Suspense Acc,Other Income Suspense Account,Suspense - Income Not Yet Identified,29/05/2013,2328,175.09,COPELAND B.C.,M00159,2,2013
Allerdale Borough Council,15501,Supplies & Services,Senior Mgt/PA Pay Group,Consultants Fees,29/05/2013,2329,"2,000.00",BADENOCH & CLARK,A01355,2,2013
Allerdale Borough Council,12103,Premises,Parks Development,Grounds Maintenance,29/05/2013,2330,"5,892.00",ISS WATERERS LANDSCAPE,C00044,2,2013
Allerdale Borough Council,15501,Supplies & Services,Building Control,Consultants Fees,29/05/2013,2331,220.00,PK ELECTRICAL (CARLISLE) LTD,A00778,2,2013
Allerdale Borough Council,15701,Supplies & Services,Environmental Services Pay Group,Installation Costs,29/05/2013,2332,29.36,VODAFONE CORPORATE LTD,A00198,2,2013
Allerdale Borough Council,15300,Supplies & Services,Food and Occupational Health,Budget-Prov of Clothing and Equipment,,2333,-49.68,SUNLIGHT SERVICE GROUP,A00027,2,2013
Allerdale Borough Council,10601,Employee Costs,Training,External Courses & Seminar Fees,29/05/2013,2334,"2,000.00",KENNEDY BUSINESS CONSULTANCY LTD,A01762,2,2013
Allerdale Borough Council,15601,Supplies & Services,Environmental Services Pay Group,Postage,29/05/2013,2335,200.00,ROYAL MAIL LETTERS,X00021,2,2013
Allerdale Borough Council,15301,Supplies & Services,Recycling,Uniforms,29/05/2013,2336,10.64,ARCO LIMITED - HEAD OFFICE HULL,A00045,2,2013
Allerdale Borough Council,14104,,Parking Services Pay Group,Repairs & Maintenance,29/05/2013,2337,52.40,HI-Q TYRESERVICES,A00313,2,2013
Allerdale Borough Council,15603,Supplies & Services,Document Management Pay Group,Franking Machine Costs,29/05/2013,2338,300.00,FP EXECUTIVE AGENCY LTD,A00733,2,2013
Allerdale Borough Council,15501,Supplies & Services,Organisational Improvement Project,Consultants Fees,12/06/2013,2339,"2,420.00",LEACH CONSULTING & ASSOCIATES LTD,A01444,2,2013
Allerdale Borough Council,15501,Supplies & Services,Organisational Improvement Project,Consultants Fees,29/05/2013,2340,"1,050.00",LEACH CONSULTING & ASSOCIATES LTD,A01444,2,2013
Allerdale Borough Council,15507,Supplies & Services,Benefits,Searches,29/05/2013,2341,36.75,TAMESIDE METROPOLITAN BOROUGH COUNCIL,A00231,2,2013
Allerdale Borough Council,15203,Supplies & Services,Senior Mgt/PA Pay Group,Catering Costs and Consumables,29/05/2013,2342,11.20,BARCLAYCARD COMMERCIAL,X00207,2,2013
Allerdale Borough Council,33112,Income,Planning and Development,Planning Fees Income,29/05/2013,2343,85.00,CUMBRIA PEST & HYGIENE SERVICES,A01167,2,2013
Allerdale Borough Council,33112,Income,Planning and Development,Planning Fees Income,29/05/2013,2344,97.50,HOLME ABBEY P.C.,X00075,2,2013
Allerdale Borough Council,20102,Third Party Payments,Recycling,Horticulture (Obsolete),29/05/2013,2345,132.50,THOMPSONS PLANT HIRE LTD,A00262,2,2013
Allerdale Borough Council,20102,Third Party Payments,Recycling,Horticulture (Obsolete),29/05/2013,2346,803.00,THOMPSONS PLANT HIRE LTD,A00262,2,2013
Allerdale Borough Council,20102,Third Party Payments,Recycling,Horticulture (Obsolete),29/05/2013,2347,"2,031.00",THOMPSONS PLANT HIRE LTD,A00262,2,2013
Allerdale Borough Council,20102,Third Party Payments,Recycling,Horticulture (Obsolete),29/05/2013,2348,63.50,THOMPSONS PLANT HIRE LTD,A00262,2,2013
Allerdale Borough Council,20102,Third Party Payments,Recycling,Horticulture (Obsolete),29/05/2013,2349,"1,146.50",THOMPSONS PLANT HIRE LTD,A00262,2,2013
Allerdale Borough Council,20102,Third Party Payments,Recycling,Horticulture (Obsolete),29/05/2013,2350,48.50,THOMPSONS PLANT HIRE LTD,A00262,2,2013
Allerdale Borough Council,20102,Third Party Payments,Recycling,Horticulture (Obsolete),29/05/2013,2351,148.50,THOMPSONS PLANT HIRE LTD,A00262,2,2013
Allerdale Borough Council,20102,Third Party Payments,Recycling,Horticulture (Obsolete),29/05/2013,2352,"1,667.50",THOMPSONS PLANT HIRE LTD,A00262,2,2013
Allerdale Borough Council,12103,Premises,Parks and Grounds Maintenance,Grounds Maintenance,29/05/2013,2353,15.82,TRAVIS PERKINS,A00742,2,2013
Allerdale Borough Council,15506,Supplies & Services,"The Hub, Workington Town Centre",Professional Services,05/06/2013,2354,116.97,PERFORMING RIGHTS SOCIETY,A00400,2,2013
Allerdale Borough Council,15501,Supplies & Services,Carnegie Theatre,Consultants Fees,29/05/2013,2355,300.00,SOLWAY ARCHITECTURAL SERVICES,A01827,2,2013
Allerdale Borough Council,15401,Supplies & Services,Carnegie Theatre,General Stationery,12/06/2013,2356,450.45,VIKING DIRECT,A00828,2,2013
Allerdale Borough Council,15514,Supplies & Services,Carnegie Theatre,Public Entertainment,29/05/2013,2357,80.00,PRO-CAM (MEDIA PRODUCTION),A01824,2,2013
Allerdale Borough Council,14104,,Parking Services Pay Group,Repairs & Maintenance,29/05/2013,2358,80.00,FCC ENVIRONMENT SERVICES (FOCSA),A00085,2,2013
Allerdale Borough Council,15506,Supplies & Services,Legal Services,Professional Services,29/05/2013,2359,"1,011.20",FREETH CARTWRIGHT LLP,A01821,2,2013
Allerdale Borough Council,10202,Employee Costs,Health and Safety,Medical Screening,29/05/2013,2360,85.00,SPECSAVERS,A00026,2,2013
Allerdale Borough Council,15506,Supplies & Services,Legal Services,Professional Services,29/05/2013,2361,40.00,CUMBRIA CC,A00066,2,2013
Allerdale Borough Council,12309,Premises,Corporate Property,Fire and Safety,29/05/2013,2362,50.44,ORIAN SOLUTIONS LTD,A01814,2,2013
Allerdale Borough Council,14150,,Gates Travel,General-Council Vehicles (Non-Capital),29/05/2013,2363,"1,795.89",GATES TRAVEL,A01525,2,2013
Allerdale Borough Council,15404,Supplies & Services,Building Control,Reference Materials,29/05/2013,2364,265.45,LEXISNEXIS BUTTERWORTHS,A00356,2,2013
Allerdale Borough Council,15505,Supplies & Services,Planning and Development,Licences,29/05/2013,2365,101.50,CENTREMAPS,A00512,2,2013
Allerdale Borough Council,10401,Employee Costs,Planning and Development,Agency Staff Costs,29/05/2013,2366,844.00,THE OYSTER PARTNERSHIP LTD,C00118,2,2013
Allerdale Borough Council,10401,Employee Costs,Planning and Development,Agency Staff Costs,29/05/2013,2367,937.02,THE OYSTER PARTNERSHIP LTD,C00118,2,2013
Allerdale Borough Council,20150,Third Party Payments,Museums,General Partnership Service Fees,29/05/2013,2368,"7,500.00",WORKINGTON HERITAGE GROUP LTD,A00339,2,2013
Allerdale Borough Council,20102,Third Party Payments,Recycling,Horticulture (Obsolete),29/05/2013,2369,"1,319.74",FCC RECYCLING (UK) LTD (ALCO),A00185,2,2013
Allerdale Borough Council,15508,Supplies & Services,Bereavement Services,Subscriptions,12/06/2013,2370,310.00,INSTITUTE OF CEMETERY & CREMATORIUM MANAGEMENT,A00958,2,2013
Allerdale Borough Council,15508,Supplies & Services,Planning and Development,Subscriptions,29/05/2013,2371,425.00,HAYMARKET MEDIA GROUP,A00720,2,2013
Allerdale Borough Council,15508,Supplies & Services,Licensing Service,Subscriptions,29/05/2013,2372,250.00,INSTITUTE OF LICENSING,A01789,2,2013
Allerdale Borough Council,15508,Supplies & Services,Land Charges Service,Subscriptions,29/05/2013,2373,115.00,LOCAL LAND CHARGES INSTITUTE,A00894,2,2013
Allerdale Borough Council,16150,Supplies & Services,Solway Wetlands Project,General Promotions,12/06/2013,2374,176.00,BORDER LOOS,A01825,2,2013
Allerdale Borough Council,12101,Premises,Public Convenience Cleaning,External Maintenance & Decoration,29/05/2013,2375,338.00,Redacted information - included personal information ,C00008,2,2013
Allerdale Borough Council,12201,Premises,Corporate Property,Internal Maintenance,29/05/2013,2376,"9,966.00",Redacted information - included personal information ,C00008,2,2013
Allerdale Borough Council,12103,Premises,Coastal Protection and Inland Flooding,Grounds Maintenance,29/05/2013,2377,96.00,Redacted information - included personal information ,C00008,2,2013
Allerdale Borough Council,16102,Supplies & Services,Town Centre Management,Regeneration Initiatives,29/05/2013,2378,300.00,COCKERMOUTH CHAMBER OF TRADE,M00160,2,2013
Allerdale Borough Council,15508,Supplies & Services,Corporate Management,Subscriptions,29/05/2013,2379,"9,413.16",LOCAL GOVERNMENT ASSOCIATION,A00686,2,2013
Allerdale Borough Council,12301,Premises,Carnegie Theatre,Security,29/05/2013,2380,78.00,CUMBRIAN SYSTEMS,C00062,2,2013
Allerdale Borough Council,15202,Supplies & Services,Carnegie Theatre,Bar Provision,10/05/2013,2381,350.24,BOOKER CASH & CARRY,A01419,2,2013
Allerdale Borough Council,73102,Holding and Control Accounts,Allerdale House Tea Fund,Holding Accounts General - Expenditure,05/06/2013,2382,91.20,TELK LTD,A01670,2,2013
Allerdale Borough Council,12201,Premises,Corporate Property,Internal Maintenance,05/06/2013,2383,576.00,CUMBRIA BLINDS,A00183,2,2013
Allerdale Borough Council,14105,,Solway Coast AONB,"Fuel, Lubricants & Consumables",12/06/2013,2384,70.00,M J TELFORD GARAGE (CARLISLE),A01193,2,2013
Allerdale Borough Council,15513,Supplies & Services,Carnegie Theatre,Subcontractors - General,29/05/2013,2385,198.00,R W AUDIO,C00059,2,2013
Allerdale Borough Council,15514,Supplies & Services,Carnegie Theatre,Public Entertainment,29/05/2013,2386,577.50,R W AUDIO,C00059,2,2013
Allerdale Borough Council,16150,Supplies & Services,Sports Development,General Promotions,,2387,"1,250.00",PARKRUN LTD,A01811,2,2013
Allerdale Borough Council,10401,Employee Costs,Planning and Development,Agency Staff Costs,29/05/2013,2388,888.41,THE OYSTER PARTNERSHIP LTD,C00118,2,2013
Allerdale Borough Council,15502,Supplies & Services,Legal Services,Land Registry Fees,29/05/2013,2389,22.00,HM LAND REGISTRY,A00505,2,2013
Allerdale Borough Council,14105,,Solway Coast AONB,"Fuel, Lubricants & Consumables",20/05/2013,2390,633.02,BP OIL UK LTD,X00022,2,2013
Allerdale Borough Council,33121,Income,Off-street - Owned,Excess Charges - Car Parks Income,29/05/2013,2391,25.00,Redacted information - included personal information ,M00161,2,2013
Allerdale Borough Council,20102,Third Party Payments,Recycling,Horticulture (Obsolete),29/05/2013,2392,"1,854.50",THOMPSONS PLANT HIRE LTD,A00262,2,2013
Allerdale Borough Council,20102,Third Party Payments,Recycling,Horticulture (Obsolete),29/05/2013,2393,187.50,THOMPSONS PLANT HIRE LTD,A00262,2,2013
Allerdale Borough Council,20102,Third Party Payments,Recycling,Horticulture (Obsolete),29/05/2013,2394,"3,352.00",THOMPSONS PLANT HIRE LTD,A00262,2,2013
Allerdale Borough Council,15405,Supplies & Services,Off-street - Owned,Use of External Printers,05/06/2013,2395,77.00,NAGELS MULTIGRAPHIC LTD,A00690,2,2013
Allerdale Borough Council,15500,Supplies & Services,Environmental Initiatives,Budget-Services,05/06/2013,2396,38.63,TRAVIS PERKINS,A00742,2,2013
Allerdale Borough Council,15500,Supplies & Services,Environmental Initiatives,Budget-Services,29/05/2013,2397,17.13,TRAVIS PERKINS,A00742,2,2013
Allerdale Borough Council,20101,Third Party Payments,Recycling,Cleansing Contract,29/05/2013,2413,"368,664.92",FCC ENVIRONMENT SERVICES (FOCSA),A00085,2,2013
Allerdale Borough Council,20101,Third Party Payments,Recycling,Cleansing Contract,29/05/2013,2414,"370,707.50",FCC ENVIRONMENT SERVICES (FOCSA),A00085,2,2013
Allerdale Borough Council,14102,,Parking Services Pay Group,Vehicle Excise Licences,29/05/2013,2415,445.00,BARCLAYCARD COMMERCIAL,X00207,2,2013
Allerdale Borough Council,15510,Supplies & Services,Confidential Waste,Disposal of Waste,,2416,96.00,P&W CONFIDENTIAL BUSINESS SERVICE,A01498,2,2013
Allerdale Borough Council,15403,Supplies & Services,Finance and Accounting Pay Group,Publications and Periodicals,,2417,228.75,CIPFA,A00572,2,2013
Allerdale Borough Council,15103,Supplies & Services,Off-street - Owned,Purchase of Materials,,2418,198.00,NAGELS UK LTD,A01182,2,2013
Allerdale Borough Council,10401,Employee Costs,Public Convenience Cleaning,Agency Staff Costs,12/06/2013,2419,159.12,COCKERMOUTH TOWN COUNCIL,A00586,2,2013
Allerdale Borough Council,20102,Third Party Payments,Recycling,Horticulture (Obsolete),05/06/2013,2420,"1,653.50",THOMPSONS PLANT HIRE LTD,A00262,2,2013
Allerdale Borough Council,20102,Third Party Payments,Recycling,Horticulture (Obsolete),05/06/2013,2421,79.50,THOMPSONS PLANT HIRE LTD,A00262,2,2013
Allerdale Borough Council,12201,Premises,Public Convenience Cleaning,Internal Maintenance,05/06/2013,2422,960.00,Redacted information - included personal information ,C00008,2,2013
Allerdale Borough Council,15506,Supplies & Services,Carnegie Theatre,Professional Services,05/06/2013,2423,190.86,ORIAN SOLUTIONS LTD,A01814,2,2013
Allerdale Borough Council,15550,Supplies & Services,Carnegie Theatre,General-Service Related Fees,05/06/2013,2424,10.00,TRANSACTION NETWORK SERVICES (UK) LTD,A01778,2,2013
Allerdale Borough Council,12101,Premises,Car Parks Inspection & Maintenance,External Maintenance & Decoration,05/06/2013,2425,"1,070.00",Redacted information - included personal information ,C00008,2,2013
Allerdale Borough Council,15813,Supplies & Services,Museums,Software Miscellaneous,,2426,"1,850.00",MODES USER ASSOCIATION,A00796,2,2013
Allerdale Borough Council,12103,Premises,Parks and Grounds Maintenance,Grounds Maintenance,,2427,35.25,J PARKER DUTCH BULBS (W/S) LTD,A01729,2,2013
Allerdale Borough Council,10401,Employee Costs,Communications and Marketing,Agency Staff Costs,05/06/2013,2428,666.45,HAYS,A00280,2,2013
Allerdale Borough Council,10401,Employee Costs,Communications and Marketing,Agency Staff Costs,12/06/2013,2429,666.45,HAYS,A00280,2,2013
Allerdale Borough Council,10401,Employee Costs,Communications and Marketing,Agency Staff Costs,05/06/2013,2430,666.45,HAYS,A00280,2,2013
Allerdale Borough Council,15202,Supplies & Services,Carnegie Theatre,Bar Provision,05/06/2013,2431,14.29,SOLWAY HEATERS LTD,A00305,2,2013
Allerdale Borough Council,12101,Premises,Corporate Property,External Maintenance & Decoration,05/06/2013,2432,580.00,Redacted information - included personal information ,C00008,2,2013
Allerdale Borough Council,33101,Income,Domestic Waste,Charges for Services General Income,05/06/2013,2433,17.23,Redacted information - included personal information ,M00162,2,2013
Allerdale Borough Council,15903,Supplies & Services,Members Services,"Courses, Training & Seminars",12/06/2013,2434,-95.55,CUMBRIA RURAL HOUSING TRUST,A01305,2,2013
Allerdale Borough Council,75103,Holding and Control Accounts,Payroll Suspense Account,PAYROLL May 13 Travel & Subsistence  ,,,"13,821.18",INLAND REVENUE - DIRECT,X00038,2,2013
